Workbook

Sheet Cover
C2: United Energy
C3: Revised proposal 2026-31
C5: Backcast wood pole condition forecast (FY21-25)
C6: Model number: | D6: 3.4.02
C8: 2025-12-01
A40: =_xlfn.SHEETS() -> 5

Sheet Summary
A1: United Energy
A2: Backcasted wood pole condition forecast
A4: FORECAST
B6: FY21-25 intervention volumes | C6: =SUM(D25:E25) -> 9286.622
A8: CALCS
B10: FY20 pole condition | C10: FY25 Pole Condition | F10: Total
C11: Serviceable | D11: Limited Life | E11: Unserviceable
B12: Serviceable | C12: =COUNTIFS(Model!$E:$E,Summary!$B12,Model!$N:$N,Summary!C$11) -> 118291 | D12: =COUNTIFS(Model!$E:$E,Summary!$B12,Model!$N:$N,Summary!D$11) -> 13238 | E12: =COUNTIFS(Model!$E:$E,Summary!$B12,Model!$N:$N,Summary!E$11) -> 0 | F12: =SUM(C12:E12) -> 131529
B13: Limited Life | C13: =COUNTIFS(Model!$E:$E,Summary!$B13,Model!$N:$N,Summary!C$11) -> 0 | D13: =COUNTIFS(Model!$E:$E,Summary!$B13,Model!$N:$N,Summary!D$11) -> 5467 | E13: =COUNTIFS(Model!$E:$E,Summary!$B13,Model!$N:$N,Summary!E$11) -> 325 | F13: =SUM(C13:E13) -> 5792
B14: Unserviceable | C14: =COUNTIFS(Model!$E:$E,Summary!$B14,Model!$N:$N,Summary!C$11) -> 0 | D14: =COUNTIFS(Model!$E:$E,Summary!$B14,Model!$N:$N,Summary!D$11) -> 0 | E14: =COUNTIFS(Model!$E:$E,Summary!$B14,Model!$N:$N,Summary!E$11) -> 397 | F14: =SUM(C14:E14) -> 397
B15: Total | C15: =SUM(C12:C14) -> 118291 | D15: =SUM(D12:D14) -> 18705 | E15: =SUM(E12:E14) -> 722 | F15: =SUM(F12:F14) -> 137718
B18: Pole condition | C18: Serviceable | D18: =Data!B12 -> Limited Life | E18: =Data!B13 -> Unserviceable
B19: FY2021 | C19: =COUNTIF(Model!$E:$E,Summary!C$18) -> 131529 | D19: =COUNTIF(Model!$E:$E,Summary!D$18) -> 5792 | E19: =COUNTIF(Model!$E:$E,Summary!E$18) -> 397
B20: FY2025 | C20: =COUNTIF(Model!$N:$N,Summary!C$18) -> 118291 | D20: =COUNTIF(Model!$N:$N,Summary!D$18) -> 18705 | E20: =COUNTIF(Model!$N:$N,Summary!E$18) -> 722
B21: Delta | C21: =C20-C19 -> -13238 | D21: =D20-D19 -> 12913 | E21: =E20-E19 -> 325
B24: Intervention volumes (FY21-25) | C24: Serviceable | D24: =D18 -> Limited Life | E24: =E18 -> Unserviceable
B25: Interventions | C25: =C20*Data!$C$11 -> 0 | D25: =D21*Data!$C$12 -> 8961.622 | E25: =E21*Data!$C$13 -> 325

Sheet Model
A1: United Energy
A2: Pole condition data
B4: Forecast end year: | D4: =Data!$C$5 -> 2025
B6: Data extract (2020) | J6: Calcs
B7: ID | C7: Start Date | D7: Pole Type | E7: FY20 pole condition | F7: Class | G7: Last inspection | H7: SWT (mm) | I7: FY20 SWT (mm) | J7: Decay period (yrs) | K7: Pole Age group | L7: Internal decay rate | M7: FY25 SWT (mm) | N7: FY25 pole condition
B8: 2 | C8: 1993 | D8: Wood Untreated Dressed | E8: Serviceable | F8: Class 1 | G8: 2016 | H8: 150 | I8: 142.16 | J8: =2025-G8 -> 9 | K8: =INDEX(Lists!$B$32:$B$40, MATCH(2020-C8, Lists!$C$32:$C$40,1)) -> 21-30 | L8: =SUMPRODUCT((Data!$B$17:$B$19=Model!$F8)*(Data!$C$16:$K$16=Model!$K8)*(Data!$C$17:$K$19)) -> 1.96 | M8: =IF(IF(H8>=700,999,(H8-L8*J8))<0,0,IF(H8>=700,999,(H8-L8*J8))) -> 132.36 | N8: =_xlfn.IFS(M8>70,"Serviceable",M8>30, "Limited Life",M8<=30, "Unserviceable") -> Serviceable
B9: 3 | C9: 1965 | D9: Wood Creos Impregnated | E9: Serviceable | F9: Class 3 | G9: 2016 | H9: 100 | I9: 89.08 | J9: 9 | K9: =INDEX(Lists!$B$32:$B$40, MATCH(2020-C9, Lists!$C$32:$C$40,1)) -> 51-60 | L9: =SUMPRODUCT((Data!$B$17:$B$19=Model!$F9)*(Data!$C$16:$K$16=Model!$K9)*(Data!$C$17:$K$19)) -> 2.73 | M9: 75.43 | N9: =_xlfn.IFS(M9>70,"Serviceable",M9>30, "Limited Life",M9<=30, "Unserviceable") -> Serviceable
B10: 4 | C10: 1965 | D10: Wood Creos Impregnated | E10: Serviceable | F10: Class 3 | G10: 2018 | H10: 80 | I10: 74.54 | J10: 7 | K10: =INDEX(Lists!$B$32:$B$40, MATCH(2020-C10, Lists!$C$32:$C$40,1)) -> 51-60 | L10: =SUMPRODUCT((Data!$B$17:$B$19=Model!$F10)*(Data!$C$16:$K$16=Model!$K10)*(Data!$C$17:$K$19)) -> 2.73 | M10: 60.89 | N10: =_xlfn.IFS(M10>70,"Serviceable",M10>30, "Limited Life",M10<=30, "Unserviceable") -> Limited Life
B11: 5 | C11: 1992 | D11: Wood Untreated Dressed | E11: Serviceable | F11: Class 1 | G11: 2016 | H11: 150 | I11: 142.16 | J11: 9 | K11: =INDEX(Lists!$B$32:$B$40, MATCH(2020-C11, Lists!$C$32:$C$40,1)) -> 21-30 | L11: =SUMPRODUCT((Data!$B$17:$B$19=Model!$F11)*(Data!$C$16:$K$16=Model!$K11)*(Data!$C$17:$K$19)) -> 1.96 | M11: 132.36 | N11: =_xlfn.IFS(M11>70,"Serviceable",M11>30, "Limited Life",M11<=30, "Unserviceable") -> Serviceable
B12: 6 | C12: 1985 | D12: Wood Other | E12: Serviceable | F12: Class 1 | G12: 2019 | H12: 120 | I12: 117.48 | J12: 6 | K12: =INDEX(Lists!$B$32:$B$40, MATCH(2020-C12, Lists!$C$32:$C$40,1)) -> 31-40 | L12: =SUMPRODUCT((Data!$B$17:$B$19=Model!$F12)*(Data!$C$16:$K$16=Model!$K12)*(Data!$C$17:$K$19)) -> 2.52 | M12: 104.88 | N12: =_xlfn.IFS(M12>70,"Serviceable",M12>30, "Limited Life",M12<=30, "Unserviceable") -> Serviceable
B13: 7 | C13: 1965 | D13: Wood Creos Impregnated | E13: Serviceable | F13: Class 1 | G13: 2019 | H13: 80 | I13: 78.35 | J13: 6 | K13: =INDEX(Lists!$B$32:$B$40, MATCH(2020-C13, Lists!$C$32:$C$40,1)) -> 51-60 | L13: =SUMPRODUCT((Data!$B$17:$B$19=Model!$F13)*(Data!$C$16:$K$16=Model!$K13)*(Data!$C$17:$K$19)) -> 1.65 | M13: 70.1 | N13: =_xlfn.IFS(M13>70,"Serviceable",M13>30, "Limited Life",M13<=30, "Unserviceable") -> Serviceable
B14: 8 | C14: 1965 | D14: Wood Creos Impregnated | E14: Serviceable | F14: Class 3 | G14: 2016 | H14: 100 | I14: 89.08 | J14: 9 | K14: =INDEX(Lists!$B$32:$B$40, MATCH(2020-C14, Lists!$C$32:$C$40,1)) -> 51-60 | L14: =SUMPRODUCT((Data!$B$17:$B$19=Model!$F14)*(Data!$C$16:$K$16=Model!$K14)*(Data!$C$17:$K$19)) -> 2.73 | M14: 75.43 | N14: =_xlfn.IFS(M14>70,"Serviceable",M14>30, "Limited Life",M14<=30, "Unserviceable") -> Serviceable
B15: 9 | C15: 1967 | D15: CCA Treated Pole | E15: Serviceable | F15: Class 1 | G15: 2015 | H15: 100 | I15: 91.75 | J15: 10 | K15: =INDEX(Lists!$B$32:$B$40, MATCH(2020-C15, Lists!$C$32:$C$40,1)) -> 51-60 | L15: =SUMPRODUCT((Data!$B$17:$B$19=Model!$F15)*(Data!$C$16:$K$16=Model!$K15)*(Data!$C$17:$K$19)) -> 1.65 | M15: 83.5 | N15: =_xlfn.IFS(M15>70,"Serviceable",M15>30, "Limited Life",M15<=30, "Unserviceable") -> Serviceable
B16: 10 | C16: 2003 | D16: CCA Treated Pole | E16: Serviceable | F16: Class 1 | G16: 2015 | H16: 166.3169155 | I16: 161.0169155 | J16: 10 | K16: =INDEX(Lists!$B$32:$B$40, MATCH(2020-C16, Lists!$C$32:$C$40,1)) -> 0-20 | L16: =SUMPRODUCT((Data!$B$17:$B$19=Model!$F16)*(Data!$C$16:$K$16=Model!$K16)*(Data!$C$17:$K$19)) -> 1.06 | M16: 155.7169155 | N16: =_xlfn.IFS(M16>70,"Serviceable",M16>30, "Limited Life",M16<=30, "Unserviceable") -> Serviceable
B17: 14 | C17: 1993 | D17: Wood Untreated Dressed | E17: Serviceable | F17: Class 1 | G17: 2015 | H17: 140 | I17: 130.2 | J17: 10 | K17: =INDEX(Lists!$B$32:$B$40, MATCH(2020-C17, Lists!$C$32:$C$40,1)) -> 21-30 | L17: =SUMPRODUCT((Data!$B$17:$B$19=Model!$F17)*(Data!$C$16:$K$16=Model!$K17)*(Data!$C$17:$K$19)) -> 1.96 | M17: 120.4 | N17: =_xlfn.IFS(M17>70,"Serviceable",M17>30, "Limited Life",M17<=30, "Unserviceable") -> Serviceable
B18: 24 | C18: 1981 | D18: Wood Untreated Dressed | E18: Serviceable | F18: Class 1 | G18: 2020 | H18: 140 | I18: 140 | J18: 5 | K18: =INDEX(Lists!$B$32:$B$40, MATCH(2020-C18, Lists!$C$32:$C$40,1)) -> 31-40 | L18: =SUMPRODUCT((Data!$B$17:$B$19=Model!$F18)*(Data!$C$16:$K$16=Model!$K18)*(Data!$C$17:$K$19)) -> 2.52 | M18: 127.4 | N18: =_xlfn.IFS(M18>70,"Serviceable",M18>30, "Limited Life",M18<=30, "Unserviceable") -> Serviceable
B19: 25 | C19: 1982 | D19: Wood Untreated Dressed | E19: Serviceable | F19: Class 1 | G19: 2020 | H19: 140 | I19: 140 | J19: 5 | K19: =INDEX(Lists!$B$32:$B$40, MATCH(2020-C19, Lists!$C$32:$C$40,1)) -> 31-40 | L19: =SUMPRODUCT((Data!$B$17:$B$19=Model!$F19)*(Data!$C$16:$K$16=Model!$K19)*(Data!$C$17:$K$19)) -> 2.52 | M19: 127.4 | N19: =_xlfn.IFS(M19>70,"Serviceable",M19>30, "Limited Life",M19<=30, "Unserviceable") -> Serviceable
B20: 26 | C20: 1982 | D20: Wood Other | E20: Serviceable | F20: Class 1 | G20: 2020 | H20: 90 | I20: 90 | J20: 5 | K20: =INDEX(Lists!$B$32:$B$40, MATCH(2020-C20, Lists!$C$32:$C$40,1)) -> 31-40 | L20: =SUMPRODUCT((Data!$B$17:$B$19=Model!$F20)*(Data!$C$16:$K$16=Model!$K20)*(Data!$C$17:$K$19)) -> 2.52 | M20: 77.4 | N20: =_xlfn.IFS(M20>70,"Serviceable",M20>30, "Limited Life",M20<=30, "Unserviceable") -> Serviceable
B21: 27 | C21: 1982 | D21: Wood Untreated Dressed | E21: Serviceable | F21: Class 3 | G21: 2020 | H21: 120 | I21: 120 | J21: 5 | K21: =INDEX(Lists!$B$32:$B$40, MATCH(2020-C21, Lists!$C$32:$C$40,1)) -> 31-40 | L21: =SUMPRODUCT((Data!$B$17:$B$19=Model!$F21)*(Data!$C$16:$K$16=Model!$K21)*(Data!$C$17:$K$19)) -> 3.22 | M21: 103.9 | N21: =_xlfn.IFS(M21>70,"Serviceable",M21>30, "Limited Life",M21<=30, "Unserviceable") -> Serviceable
B22: 28 | C22: 1981 | D22: Wood Untreated Dressed | E22: Serviceable | F22: Class 1 | G22: 2020 | H22: 140 | I22: 140 | J22: 5 | K22: =INDEX(Lists!$B$32:$B$40, MATCH(2020-C22, Lists!$C$32:$C$40,1)) -> 31-40 | L22: =SUMPRODUCT((Data!$B$17:$B$19=Model!$F22)*(Data!$C$16:$K$16=Model!$K22)*(Data!$C$17:$K$19)) -> 2.52 | M22: 127.4 | N22: =_xlfn.IFS(M22>70,"Serviceable",M22>30, "Limited Life",M22<=30, "Unserviceable") -> Serviceable
B23: 29 | C23: 1983 | D23: Wood Untreated Dressed | E23: Serviceable | F23: Class 1 | G23: 2015 | H23: 140 | I23: 127.4 | J23: 10 | K23: =INDEX(Lists!$B$32:$B$40, MATCH(2020-C23, Lists!$C$32:$C$40,1)) -> 31-40 | L23: =SUMPRODUCT((Data!$B$17:$B$19=Model!$F23)*(Data!$C$16:$K$16=Model!$K23)*(Data!$C$17:$K$19)) -> 2.52 | M23: 114.8 | N23: =_xlfn.IFS(M23>70,"Serviceable",M23>30, "Limited Life",M23<=30, "Unserviceable") -> Serviceable
B24: 30 | C24: 1982 | D24: Wood Untreated Dressed | E24: Serviceable | F24: Class 1 | G24: 2020 | H24: 130 | I24: 130 | J24: 5 | K24: =INDEX(Lists!$B$32:$B$40, MATCH(2020-C24, Lists!$C$32:$C$40,1)) -> 31-40 | L24: =SUMPRODUCT((Data!$B$17:$B$19=Model!$F24)*(Data!$C$16:$K$16=Model!$K24)*(Data!$C$17:$K$19)) -> 2.52 | M24: 117.4 | N24: =_xlfn.IFS(M24>70,"Serviceable",M24>30, "Limited Life",M24<=30, "Unserviceable") -> Serviceable
B25: 31 | C25: 1982 | D25: Wood Untreated Dressed | E25: Serviceable | F25: Class 1 | G25: 2020 | H25: 100 | I25: 100 | J25: 5 | K25: =INDEX(Lists!$B$32:$B$40, MATCH(2020-C25, Lists!$C$32:$C$40,1)) -> 31-40 | L25: =SUMPRODUCT((Data!$B$17:$B$19=Model!$F25)*(Data!$C$16:$K$16=Model!$K25)*(Data!$C$17:$K$19)) -> 2.52 | M25: 87.4 | N25: =_xlfn.IFS(M25>70,"Serviceable",M25>30, "Limited Life",M25<=30, "Unserviceable") -> Serviceable
B26: 32 | C26: 1982 | D26: Wood Untreated Dressed | E26: Serviceable | F26: Class 1 | G26: 2020 | H26: 140 | I26: 140 | J26: 5 | K26: =INDEX(Lists!$B$32:$B$40, MATCH(2020-C26, Lists!$C$32:$C$40,1)) -> 31-40 | L26: =SUMPRODUCT((Data!$B$17:$B$19=Model!$F26)*(Data!$C$16:$K$16=Model!$K26)*(Data!$C$17:$K$19)) -> 2.52 | M26: 127.4 | N26: =_xlfn.IFS(M26>70,"Serviceable",M26>30, "Limited Life",M26<=30, "Unserviceable") -> Serviceable
B27: 33 | C27: 1982 | D27: Wood Untreated Dressed | E27: Serviceable | F27: Class 1 | G27: 2020 | H27: 150 | I27: 150 | J27: 5 | K27: =INDEX(Lists!$B$32:$B$40, MATCH(2020-C27, Lists!$C$32:$C$40,1)) -> 31-40 | L27: =SUMPRODUCT((Data!$B$17:$B$19=Model!$F27)*(Data!$C$16:$K$16=Model!$K27)*(Data!$C$17:$K$19)) -> 2.52 | M27: 137.4 | N27: =_xlfn.IFS(M27>70,"Serviceable",M27>30, "Limited Life",M27<=30, "Unserviceable") -> Serviceable
B28: 34 | C28: 1982 | D28: Wood Untreated Dressed | E28: Serviceable | F28: Class 1 | G28: 2015 | H28: 150 | I28: 137.4 | J28: 10 | K28: =INDEX(Lists!$B$32:$B$40, MATCH(2020-C28, Lists!$C$32:$C$40,1)) -> 31-40 | L28: =SUMPRODUCT((Data!$B$17:$B$19=Model!$F28)*(Data!$C$16:$K$16=Model!$K28)*(Data!$C$17:$K$19)) -> 2.52 | M28: 124.8 | N28: =_xlfn.IFS(M28>70,"Serviceable",M28>30, "Limited Life",M28<=30, "Unserviceable") -> Serviceable
B29: 35 | C29: 1982 | D29: Wood Untreated Dressed | E29: Serviceable | F29: Class 1 | G29: 2020 | H29: 120 | I29: 120 | J29: 5 | K29: =INDEX(Lists!$B$32:$B$40, MATCH(2020-C29, Lists!$C$32:$C$40,1)) -> 31-40 | L29: =SUMPRODUCT((Data!$B$17:$B$19=Model!$F29)*(Data!$C$16:$K$16=Model!$K29)*(Data!$C$17:$K$19)) -> 2.52 | M29: 107.4 | N29: =_xlfn.IFS(M29>70,"Serviceable",M29>30, "Limited Life",M29<=30, "Unserviceable") -> Serviceable
B30: 36 | C30: 1982 | D30: Wood Untreated Dressed | E30: Serviceable | F30: Class 1 | G30: 2015 | H30: 140 | I30: 127.4 | J30: 10 | K30: =INDEX(Lists!$B$32:$B$40, MATCH(2020-C30, Lists!$C$32:$C$40,1)) -> 31-40 | L30: =SUMPRODUCT((Data!$B$17:$B$19=Model!$F30)*(Data!$C$16:$K$16=Model!$K30)*(Data!$C$17:$K$19)) -> 2.52 | M30: 114.8 | N30: =_xlfn.IFS(M30>70,"Serviceable",M30>30, "Limited Life",M30<=30, "Unserviceable") -> Serviceable
B31: 37 | C31: 1982 | D31: Wood Untreated Dressed | E31: Serviceable | F31: Class 1 | G31: 2016 | H31: 150 | I31: 139.92 | J31: 9 | K31: =INDEX(Lists!$B$32:$B$40, MATCH(2020-C31, Lists!$C$32:$C$40,1)) -> 31-40 | L31: =SUMPRODUCT((Data!$B$17:$B$19=Model!$F31)*(Data!$C$16:$K$16=Model!$K31)*(Data!$C$17:$K$19)) -> 2.52 | M31: 127.32 | N31: =_xlfn.IFS(M31>70,"Serviceable",M31>30, "Limited Life",M31<=30, "Unserviceable") -> Serviceable
B32: 38 | C32: 1982 | D32: Wood Untreated Dressed | E32: Serviceable | F32: Class 1 | G32: 2020 | H32: 120 | I32: 120 | J32: 5 | K32: =INDEX(Lists!$B$32:$B$40, MATCH(2020-C32, Lists!$C$32:$C$40,1)) -> 31-40 | L32: =SUMPRODUCT((Data!$B$17:$B$19=Model!$F32)*(Data!$C$16:$K$16=Model!$K32)*(Data!$C$17:$K$19)) -> 2.52 | M32: 107.4 | N32: =_xlfn.IFS(M32>70,"Serviceable",M32>30, "Limited Life",M32<=30, "Unserviceable") -> Serviceable
B33: 39 | C33: 1982 | D33: Wood Untreated Dressed | E33: Serviceable | F33: Class 1 | G33: 2020 | H33: 130 | I33: 130 | J33: 5 | K33: =INDEX(Lists!$B$32:$B$40, MATCH(2020-C33, Lists!$C$32:$C$40,1)) -> 31-40 | L33: =SUMPRODUCT((Data!$B$17:$B$19=Model!$F33)*(Data!$C$16:$K$16=Model!$K33)*(Data!$C$17:$K$19)) -> 2.52 | M33: 117.4 | N33: =_xlfn.IFS(M33>70,"Serviceable",M33>30, "Limited Life",M33<=30, "Unserviceable") -> Serviceable
B34: 40 | C34: 1982 | D34: Wood Untreated Dressed | E34: Serviceable | F34: Class 1 | G34: 2020 | H34: 140 | I34: 140 | J34: 5 | K34: =INDEX(Lists!$B$32:$B$40, MATCH(2020-C34, Lists!$C$32:$C$40,1)) -> 31-40 | L34: =SUMPRODUCT((Data!$B$17:$B$19=Model!$F34)*(Data!$C$16:$K$16=Model!$K34)*(Data!$C$17:$K$19)) -> 2.52 | M34: 127.4 | N34: =_xlfn.IFS(M34>70,"Serviceable",M34>30, "Limited Life",M34<=30, "Unserviceable") -> Serviceable
B35: 42 | C35: 1983 | D35: Wood Untreated Dressed | E35: Serviceable | F35: Class 1 | G35: 2020 | H35: 130 | I35: 130 | J35: 5 | K35: =INDEX(Lists!$B$32:$B$40, MATCH(2020-C35, Lists!$C$32:$C$40,1)) -> 31-40 | L35: =SUMPRODUCT((Data!$B$17:$B$19=Model!$F35)*(Data!$C$16:$K$16=Model!$K35)*(Data!$C$17:$K$19)) -> 2.52 | M35: 117.4 | N35: =_xlfn.IFS(M35>70,"Serviceable",M35>30, "Limited Life",M35<=30, "Unserviceable") -> Serviceable
B36: 43 | C36: 1982 | D36: Wood Untreated Dressed | E36: Serviceable | F36: Class 1 | G36: 2020 | H36: 120 | I36: 120 | J36: 5 | K36: =INDEX(Lists!$B$32:$B$40, MATCH(2020-C36, Lists!$C$32:$C$40,1)) -> 31-40 | L36: =SUMPRODUCT((Data!$B$17:$B$19=Model!$F36)*(Data!$C$16:$K$16=Model!$K36)*(Data!$C$17:$K$19)) -> 2.52 | M36: 107.4 | N36: =_xlfn.IFS(M36>70,"Serviceable",M36>30, "Limited Life",M36<=30, "Unserviceable") -> Serviceable
B37: 44 | C37: 1982 | D37: Wood Untreated Dressed | E37: Serviceable | F37: Class 1 | G37: 2016 | H37: 130 | I37: 119.92 | J37: 9 | K37: =INDEX(Lists!$B$32:$B$40, MATCH(2020-C37, Lists!$C$32:$C$40,1)) -> 31-40 | L37: =SUMPRODUCT((Data!$B$17:$B$19=Model!$F37)*(Data!$C$16:$K$16=Model!$K37)*(Data!$C$17:$K$19)) -> 2.52 | M37: 107.32 | N37: =_xlfn.IFS(M37>70,"Serviceable",M37>30, "Limited Life",M37<=30, "Unserviceable") -> Serviceable
B38: 45 | C38: 1982 | D38: Wood Untreated Dressed | E38: Serviceable | F38: Class 1 | G38: 2016 | H38: 140 | I38: 129.92 | J38: 9 | K38: =INDEX(Lists!$B$32:$B$40, MATCH(2020-C38, Lists!$C$32:$C$40,1)) -> 31-40 | L38: =SUMPRODUCT((Data!$B$17:$B$19=Model!$F38)*(Data!$C$16:$K$16=Model!$K38)*(Data!$C$17:$K$19)) -> 2.52 | M38: 117.32 | N38: =_xlfn.IFS(M38>70,"Serviceable",M38>30, "Limited Life",M38<=30, "Unserviceable") -> Serviceable
B39: 46 | C39: 1985 | D39: Wood Untreated Dressed | E39: Serviceable | F39: Class 1 | G39: 2015 | H39: 130 | I39: 117.4 | J39: 10 | K39: =INDEX(Lists!$B$32:$B$40, MATCH(2020-C39, Lists!$C$32:$C$40,1)) -> 31-40 | L39: =SUMPRODUCT((Data!$B$17:$B$19=Model!$F39)*(Data!$C$16:$K$16=Model!$K39)*(Data!$C$17:$K$19)) -> 2.52 | M39: 104.8 | N39: =_xlfn.IFS(M39>70,"Serviceable",M39>30, "Limited Life",M39<=30, "Unserviceable") -> Serviceable
B40: 47 | C40: 1982 | D40: Wood Untreated Dressed | E40: Serviceable | F40: Class 1 | G40: 2020 | H40: 130 | I40: 130 | J40: 5 | K40: =INDEX(Lists!$B$32:$B$40, MATCH(2020-C40, Lists!$C$32:$C$40,1)) -> 31-40 | L40: =SUMPRODUCT((Data!$B$17:$B$19=Model!$F40)*(Data!$C$16:$K$16=Model!$K40)*(Data!$C$17:$K$19)) -> 2.52 | M40: 117.4 | N40: =_xlfn.IFS(M40>70,"Serviceable",M40>30, "Limited Life",M40<=30, "Unserviceable") -> Serviceable
B41: 48 | C41: 1982 | D41: Wood Untreated Dressed | E41: Serviceable | F41: Class 1 | G41: 2020 | H41: 110 | I41: 110 | J41: 5 | K41: =INDEX(Lists!$B$32:$B$40, MATCH(2020-C41, Lists!$C$32:$C$40,1)) -> 31-40 | L41: =SUMPRODUCT((Data!$B$17:$B$19=Model!$F41)*(Data!$C$16:$K$16=Model!$K41)*(Data!$C$17:$K$19)) -> 2.52 | M41: 97.4 | N41: =_xlfn.IFS(M41>70,"Serviceable",M41>30, "Limited Life",M41<=30, "Unserviceable") -> Serviceable
B42: 49 | C42: 1982 | D42: Wood Untreated Dressed | E42: Serviceable | F42: Class 1 | G42: 2020 | H42: 120 | I42: 120 | J42: 5 | K42: =INDEX(Lists!$B$32:$B$40, MATCH(2020-C42, Lists!$C$32:$C$40,1)) -> 31-40 | L42: =SUMPRODUCT((Data!$B$17:$B$19=Model!$F42)*(Data!$C$16:$K$16=Model!$K42)*(Data!$C$17:$K$19)) -> 2.52 | M42: 107.4 | N42: =_xlfn.IFS(M42>70,"Serviceable",M42>30, "Limited Life",M42<=30, "Unserviceable") -> Serviceable
B43: 50 | C43: 1982 | D43: Wood Untreated Dressed | E43: Serviceable | F43: Class 1 | G43: 2020 | H43: 110 | I43: 110 | J43: 5 | K43: =INDEX(Lists!$B$32:$B$40, MATCH(2020-C43, Lists!$C$32:$C$40,1)) -> 31-40 | L43: =SUMPRODUCT((Data!$B$17:$B$19=Model!$F43)*(Data!$C$16:$K$16=Model!$K43)*(Data!$C$17:$K$19)) -> 2.52 | M43: 97.4 | N43: =_xlfn.IFS(M43>70,"Serviceable",M43>30, "Limited Life",M43<=30, "Unserviceable") -> Serviceable
B44: 51 | C44: 1982 | D44: Wood Untreated Dressed | E44: Serviceable | F44: Class 1 | G44: 2020 | H44: 130 | I44: 130 | J44: 5 | K44: =INDEX(Lists!$B$32:$B$40, MATCH(2020-C44, Lists!$C$32:$C$40,1)) -> 31-40 | L44: =SUMPRODUCT((Data!$B$17:$B$19=Model!$F44)*(Data!$C$16:$K$16=Model!$K44)*(Data!$C$17:$K$19)) -> 2.52 | M44: 117.4 | N44: =_xlfn.IFS(M44>70,"Serviceable",M44>30, "Limited Life",M44<=30, "Unserviceable") -> Serviceable
B45: 52 | C45: 1982 | D45: Wood Untreated Dressed | E45: Serviceable | F45: Class 1 | G45: 2020 | H45: 120 | I45: 120 | J45: 5 | K45: =INDEX(Lists!$B$32:$B$40, MATCH(2020-C45, Lists!$C$32:$C$40,1)) -> 31-40 | L45: =SUMPRODUCT((Data!$B$17:$B$19=Model!$F45)*(Data!$C$16:$K$16=Model!$K45)*(Data!$C$17:$K$19)) -> 2.52 | M45: 107.4 | N45: =_xlfn.IFS(M45>70,"Serviceable",M45>30, "Limited Life",M45<=30, "Unserviceable") -> Serviceable
B46: 53 | C46: 1982 | D46: Wood Untreated Dressed | E46: Serviceable | F46: Class 1 | G46: 2020 | H46: 120 | I46: 120 | J46: 5 | K46: =INDEX(Lists!$B$32:$B$40, MATCH(2020-C46, Lists!$C$32:$C$40,1)) -> 31-40 | L46: =SUMPRODUCT((Data!$B$17:$B$19=Model!$F46)*(Data!$C$16:$K$16=Model!$K46)*(Data!$C$17:$K$19)) -> 2.52 | M46: 107.4 | N46: =_xlfn.IFS(M46>70,"Serviceable",M46>30, "Limited Life",M46<=30, "Unserviceable") -> Serviceable
B47: 54 | C47: 1982 | D47: Wood Untreated Dressed | E47: Serviceable | F47: Class 1 | G47: 2015 | H47: 150 | I47: 137.4 | J47: 10 | K47: =INDEX(Lists!$B$32:$B$40, MATCH(2020-C47, Lists!$C$32:$C$40,1)) -> 31-40 | L47: =SUMPRODUCT((Data!$B$17:$B$19=Model!$F47)*(Data!$C$16:$K$16=Model!$K47)*(Data!$C$17:$K$19)) -> 2.52 | M47: 124.8 | N47: =_xlfn.IFS(M47>70,"Serviceable",M47>30, "Limited Life",M47<=30, "Unserviceable") -> Serviceable
B48: 55 | C48: 1982 | D48: Wood Untreated Dressed | E48: Serviceable | F48: Class 1 | G48: 2020 | H48: 110 | I48: 110 | J48: 5 | K48: =INDEX(Lists!$B$32:$B$40, MATCH(2020-C48, Lists!$C$32:$C$40,1)) -> 31-40 | L48: =SUMPRODUCT((Data!$B$17:$B$19=Model!$F48)*(Data!$C$16:$K$16=Model!$K48)*(Data!$C$17:$K$19)) -> 2.52 | M48: 97.4 | N48: =_xlfn.IFS(M48>70,"Serviceable",M48>30, "Limited Life",M48<=30, "Unserviceable") -> Serviceable
B49: 56 | C49: 1981 | D49: Wood Untreated Dressed | E49: Serviceable | F49: Class 1 | G49: 2020 | H49: 130 | I49: 130 | J49: 5 | K49: =INDEX(Lists!$B$32:$B$40, MATCH(2020-C49, Lists!$C$32:$C$40,1)) -> 31-40 | L49: =SUMPRODUCT((Data!$B$17:$B$19=Model!$F49)*(Data!$C$16:$K$16=Model!$K49)*(Data!$C$17:$K$19)) -> 2.52 | M49: 117.4 | N49: =_xlfn.IFS(M49>70,"Serviceable",M49>30, "Limited Life",M49<=30, "Unserviceable") -> Serviceable
B50: 57 | C50: 1982 | D50: Wood Untreated Dressed | E50: Serviceable | F50: Class 1 | G50: 2020 | H50: 120 | I50: 120 | J50: 5 | K50: =INDEX(Lists!$B$32:$B$40, MATCH(2020-C50, Lists!$C$32:$C$40,1)) -> 31-40 | L50: =SUMPRODUCT((Data!$B$17:$B$19=Model!$F50)*(Data!$C$16:$K$16=Model!$K50)*(Data!$C$17:$K$19)) -> 2.52 | M50: 107.4 | N50: =_xlfn.IFS(M50>70,"Serviceable",M50>30, "Limited Life",M50<=30, "Unserviceable") -> Serviceable
B51: 58 | C51: 1981 | D51: Wood Untreated Dressed | E51: Serviceable | F51: Class 1 | G51: 2020 | H51: 130 | I51: 130 | J51: 5 | K51: =INDEX(Lists!$B$32:$B$40, MATCH(2020-C51, Lists!$C$32:$C$40,1)) -> 31-40 | L51: =SUMPRODUCT((Data!$B$17:$B$19=Model!$F51)*(Data!$C$16:$K$16=Model!$K51)*(Data!$C$17:$K$19)) -> 2.52 | M51: 117.4 | N51: =_xlfn.IFS(M51>70,"Serviceable",M51>30, "Limited Life",M51<=30, "Unserviceable") -> Serviceable
B52: 59 | C52: 1982 | D52: Wood Untreated Dressed | E52: Serviceable | F52: Class 1 | G52: 2015 | H52: 140 | I52: 127.4 | J52: 10 | K52: =INDEX(Lists!$B$32:$B$40, MATCH(2020-C52, Lists!$C$32:$C$40,1)) -> 31-40 | L52: =SUMPRODUCT((Data!$B$17:$B$19=Model!$F52)*(Data!$C$16:$K$16=Model!$K52)*(Data!$C$17:$K$19)) -> 2.52 | M52: 114.8 | N52: =_xlfn.IFS(M52>70,"Serviceable",M52>30, "Limited Life",M52<=30, "Unserviceable") -> Serviceable
B53: 60 | C53: 1982 | D53: Wood Untreated Dressed | E53: Serviceable | F53: Class 1 | G53: 2015 | H53: 140 | I53: 127.4 | J53: 10 | K53: =INDEX(Lists!$B$32:$B$40, MATCH(2020-C53, Lists!$C$32:$C$40,1)) -> 31-40 | L53: =SUMPRODUCT((Data!$B$17:$B$19=Model!$F53)*(Data!$C$16:$K$16=Model!$K53)*(Data!$C$17:$K$19)) -> 2.52 | M53: 114.8 | N53: =_xlfn.IFS(M53>70,"Serviceable",M53>30, "Limited Life",M53<=30, "Unserviceable") -> Serviceable
B54: 61 | C54: 1997 | D54: Wood Untreated Dressed | E54: Serviceable | F54: Class 1 | G54: 2015 | H54: 150 | I54: 140.2 | J54: 10 | K54: =INDEX(Lists!$B$32:$B$40, MATCH(2020-C54, Lists!$C$32:$C$40,1)) -> 21-30 | L54: =SUMPRODUCT((Data!$B$17:$B$19=Model!$F54)*(Data!$C$16:$K$16=Model!$K54)*(Data!$C$17:$K$19)) -> 1.96 | M54: 130.4 | N54: =_xlfn.IFS(M54>70,"Serviceable",M54>30, "Limited Life",M54<=30, "Unserviceable") -> Serviceable
B55: 62 | C55: 1982 | D55: Wood Untreated Dressed | E55: Serviceable | F55: Class 1 | G55: 2015 | H55: 150 | I55: 137.4 | J55: 10 | K55: =INDEX(Lists!$B$32:$B$40, MATCH(2020-C55, Lists!$C$32:$C$40,1)) -> 31-40 | L55: =SUMPRODUCT((Data!$B$17:$B$19=Model!$F55)*(Data!$C$16:$K$16=Model!$K55)*(Data!$C$17:$K$19)) -> 2.52 | M55: 124.8 | N55: =_xlfn.IFS(M55>70,"Serviceable",M55>30, "Limited Life",M55<=30, "Unserviceable") -> Serviceable
B56: 63 | C56: 1982 | D56: Wood Untreated Dressed | E56: Serviceable | F56: Class 1 | G56: 2015 | H56: 130 | I56: 117.4 | J56: 10 | K56: =INDEX(Lists!$B$32:$B$40, MATCH(2020-C56, Lists!$C$32:$C$40,1)) -> 31-40 | L56: =SUMPRODUCT((Data!$B$17:$B$19=Model!$F56)*(Data!$C$16:$K$16=Model!$K56)*(Data!$C$17:$K$19)) -> 2.52 | M56: 104.8 | N56: =_xlfn.IFS(M56>70,"Serviceable",M56>30, "Limited Life",M56<=30, "Unserviceable") -> Serviceable
B57: 64 | C57: 2007 | D57: CCA Treated Pole | E57: Serviceable | F57: Class 3 | G57: 2015 | H57: 150 | I57: 143.15 | J57: 10 | K57: =INDEX(Lists!$B$32:$B$40, MATCH(2020-C57, Lists!$C$32:$C$40,1)) -> 0-20 | L57: =SUMPRODUCT((Data!$B$17:$B$19=Model!$F57)*(Data!$C$16:$K$16=Model!$K57)*(Data!$C$17:$K$19)) -> 1.37 | M57: 136.3 | N57: =_xlfn.IFS(M57>70,"Serviceable",M57>30, "Limited Life",M57<=30, "Unserviceable") -> Serviceable
B58: 65 | C58: 1982 | D58: Wood Untreated Dressed | E58: Serviceable | F58: Class 1 | G58: 2020 | H58: 130 | I58: 130 | J58: 5 | K58: =INDEX(Lists!$B$32:$B$40, MATCH(2020-C58, Lists!$C$32:$C$40,1)) -> 31-40 | L58: =SUMPRODUCT((Data!$B$17:$B$19=Model!$F58)*(Data!$C$16:$K$16=Model!$K58)*(Data!$C$17:$K$19)) -> 2.52 | M58: 117.4 | N58: =_xlfn.IFS(M58>70,"Serviceable",M58>30, "Limited Life",M58<=30, "Unserviceable") -> Serviceable
B59: 66 | C59: 1981 | D59: Wood Untreated Dressed | E59: Serviceable | F59: Class 1 | G59: 2020 | H59: 120 | I59: 120 | J59: 5 | K59: =INDEX(Lists!$B$32:$B$40, MATCH(2020-C59, Lists!$C$32:$C$40,1)) -> 31-40 | L59: =SUMPRODUCT((Data!$B$17:$B$19=Model!$F59)*(Data!$C$16:$K$16=Model!$K59)*(Data!$C$17:$K$19)) -> 2.52 | M59: 107.4 | N59: =_xlfn.IFS(M59>70,"Serviceable",M59>30, "Limited Life",M59<=30, "Unserviceable") -> Serviceable
B60: 67 | C60: 1982 | D60: Wood Untreated Dressed | E60: Serviceable | F60: Class 1 | G60: 2020 | H60: 130 | I60: 130 | J60: 5 | K60: =INDEX(Lists!$B$32:$B$40, MATCH(2020-C60, Lists!$C$32:$C$40,1)) -> 31-40 | L60: =SUMPRODUCT((Data!$B$17:$B$19=Model!$F60)*(Data!$C$16:$K$16=Model!$K60)*(Data!$C$17:$K$19)) -> 2.52 | M60: 117.4 | N60: =_xlfn.IFS(M60>70,"Serviceable",M60>30, "Limited Life",M60<=30, "Unserviceable") -> Serviceable
B61: 68 | C61: 1981 | D61: Wood Untreated Dressed | E61: Serviceable | F61: Class 1 | G61: 2020 | H61: 120 | I61: 120 | J61: 5 | K61: =INDEX(Lists!$B$32:$B$40, MATCH(2020-C61, Lists!$C$32:$C$40,1)) -> 31-40 | L61: =SUMPRODUCT((Data!$B$17:$B$19=Model!$F61)*(Data!$C$16:$K$16=Model!$K61)*(Data!$C$17:$K$19)) -> 2.52 | M61: 107.4 | N61: =_xlfn.IFS(M61>70,"Serviceable",M61>30, "Limited Life",M61<=30, "Unserviceable") -> Serviceable
B62: 69 | C62: 1981 | D62: Wood Untreated Dressed | E62: Serviceable | F62: Class 1 | G62: 2020 | H62: 120 | I62: 120 | J62: 5 | K62: =INDEX(Lists!$B$32:$B$40, MATCH(2020-C62, Lists!$C$32:$C$40,1)) -> 31-40 | L62: =SUMPRODUCT((Data!$B$17:$B$19=Model!$F62)*(Data!$C$16:$K$16=Model!$K62)*(Data!$C$17:$K$19)) -> 2.52 | M62: 107.4 | N62: =_xlfn.IFS(M62>70,"Serviceable",M62>30, "Limited Life",M62<=30, "Unserviceable") -> Serviceable
B63: 70 | C63: 1983 | D63: Wood Untreated Dressed | E63: Serviceable | F63: Class 1 | G63: 2020 | H63: 120 | I63: 120 | J63: 5 | K63: =INDEX(Lists!$B$32:$B$40, MATCH(2020-C63, Lists!$C$32:$C$40,1)) -> 31-40 | L63: =SUMPRODUCT((Data!$B$17:$B$19=Model!$F63)*(Data!$C$16:$K$16=Model!$K63)*(Data!$C$17:$K$19)) -> 2.52 | M63: 107.4 | N63: =_xlfn.IFS(M63>70,"Serviceable",M63>30, "Limited Life",M63<=30, "Unserviceable") -> Serviceable
B64: 71 | C64: 1982 | D64: Wood Untreated Dressed | E64: Unserviceable | F64: Class 1 | G64: 2020 | H64: 30 | I64: 30 | J64: 5 | K64: =INDEX(Lists!$B$32:$B$40, MATCH(2020-C64, Lists!$C$32:$C$40,1)) -> 31-40 | L64: =SUMPRODUCT((Data!$B$17:$B$19=Model!$F64)*(Data!$C$16:$K$16=Model!$K64)*(Data!$C$17:$K$19)) -> 2.52 | M64: 17.4 | N64: =_xlfn.IFS(M64>70,"Serviceable",M64>30, "Limited Life",M64<=30, "Unserviceable") -> Unserviceable
B65: 72 | C65: 1982 | D65: Wood Untreated Dressed | E65: Serviceable | F65: Class 1 | G65: 2015 | H65: 140 | I65: 127.4 | J65: 10 | K65: =INDEX(Lists!$B$32:$B$40, MATCH(2020-C65, Lists!$C$32:$C$40,1)) -> 31-40 | L65: =SUMPRODUCT((Data!$B$17:$B$19=Model!$F65)*(Data!$C$16:$K$16=Model!$K65)*(Data!$C$17:$K$19)) -> 2.52 | M65: 114.8 | N65: =_xlfn.IFS(M65>70,"Serviceable",M65>30, "Limited Life",M65<=30, "Unserviceable") -> Serviceable
B66: 73 | C66: 1983 | D66: Wood Untreated Dressed | E66: Serviceable | F66: Class 1 | G66: 2020 | H66: 120 | I66: 120 | J66: 5 | K66: =INDEX(Lists!$B$32:$B$40, MATCH(2020-C66, Lists!$C$32:$C$40,1)) -> 31-40 | L66: =SUMPRODUCT((Data!$B$17:$B$19=Model!$F66)*(Data!$C$16:$K$16=Model!$K66)*(Data!$C$17:$K$19)) -> 2.52 | M66: 107.4 | N66: =_xlfn.IFS(M66>70,"Serviceable",M66>30, "Limited Life",M66<=30, "Unserviceable") -> Serviceable
B67: 74 | C67: 1981 | D67: Wood Untreated Dressed | E67: Serviceable | F67: Class 1 | G67: 2020 | H67: 100 | I67: 100 | J67: 5 | K67: =INDEX(Lists!$B$32:$B$40, MATCH(2020-C67, Lists!$C$32:$C$40,1)) -> 31-40 | L67: =SUMPRODUCT((Data!$B$17:$B$19=Model!$F67)*(Data!$C$16:$K$16=Model!$K67)*(Data!$C$17:$K$19)) -> 2.52 | M67: 87.4 | N67: =_xlfn.IFS(M67>70,"Serviceable",M67>30, "Limited Life",M67<=30, "Unserviceable") -> Serviceable
B68: 75 | C68: 1981 | D68: Wood Untreated Dressed | E68: Serviceable | F68: Class 1 | G68: 2020 | H68: 130 | I68: 130 | J68: 5 | K68: =INDEX(Lists!$B$32:$B$40, MATCH(2020-C68, Lists!$C$32:$C$40,1)) -> 31-40 | L68: =SUMPRODUCT((Data!$B$17:$B$19=Model!$F68)*(Data!$C$16:$K$16=Model!$K68)*(Data!$C$17:$K$19)) -> 2.52 | M68: 117.4 | N68: =_xlfn.IFS(M68>70,"Serviceable",M68>30, "Limited Life",M68<=30, "Unserviceable") -> Serviceable
B69: 76 | C69: 1983 | D69: Wood Untreated Dressed | E69: Serviceable | F69: Class 1 | G69: 2016 | H69: 150 | I69: 139.92 | J69: 9 | K69: =INDEX(Lists!$B$32:$B$40, MATCH(2020-C69, Lists!$C$32:$C$40,1)) -> 31-40 | L69: =SUMPRODUCT((Data!$B$17:$B$19=Model!$F69)*(Data!$C$16:$K$16=Model!$K69)*(Data!$C$17:$K$19)) -> 2.52 | M69: 127.32 | N69: =_xlfn.IFS(M69>70,"Serviceable",M69>30, "Limited Life",M69<=30, "Unserviceable") -> Serviceable
B70: 77 | C70: 1981 | D70: Wood Untreated Dressed | E70: Serviceable | F70: Class 1 | G70: 2019 | H70: 130 | I70: 127.48 | J70: 6 | K70: =INDEX(Lists!$B$32:$B$40, MATCH(2020-C70, Lists!$C$32:$C$40,1)) -> 31-40 | L70: =SUMPRODUCT((Data!$B$17:$B$19=Model!$F70)*(Data!$C$16:$K$16=Model!$K70)*(Data!$C$17:$K$19)) -> 2.52 | M70: 114.88 | N70: =_xlfn.IFS(M70>70,"Serviceable",M70>30, "Limited Life",M70<=30, "Unserviceable") -> Serviceable
B71: 78 | C71: 1983 | D71: Wood Untreated Dressed | E71: Serviceable | F71: Class 1 | G71: 2016 | H71: 150 | I71: 139.92 | J71: 9 | K71: =INDEX(Lists!$B$32:$B$40, MATCH(2020-C71, Lists!$C$32:$C$40,1)) -> 31-40 | L71: =SUMPRODUCT((Data!$B$17:$B$19=Model!$F71)*(Data!$C$16:$K$16=Model!$K71)*(Data!$C$17:$K$19)) -> 2.52 | M71: 127.32 | N71: =_xlfn.IFS(M71>70,"Serviceable",M71>30, "Limited Life",M71<=30, "Unserviceable") -> Serviceable
B72: 80 | C72: 1983 | D72: Wood Untreated Dressed | E72: Serviceable | F72: Class 1 | G72: 2017 | H72: 140 | I72: 132.44 | J72: =2025-G72 -> 8 | K72: =INDEX(Lists!$B$32:$B$40, MATCH(2020-C72, Lists!$C$32:$C$40,1)) -> 31-40 | L72: =SUMPRODUCT((Data!$B$17:$B$19=Model!$F72)*(Data!$C$16:$K$16=Model!$K72)*(Data!$C$17:$K$19)) -> 2.52 | M72: =IF(IF(H72>=700,999,(H72-L72*J72))<0,0,IF(H72>=700,999,(H72-L72*J72))) -> 119.84 | N72: =_xlfn.IFS(M72>70,"Serviceable",M72>30, "Limited Life",M72<=30, "Unserviceable") -> Serviceable
B73: 81 | C73: 1983 | D73: Wood Untreated Dressed | E73: Serviceable | F73: Class 1 | G73: 2019 | H73: 140 | I73: 137.48 | J73: 6 | K73: =INDEX(Lists!$B$32:$B$40, MATCH(2020-C73, Lists!$C$32:$C$40,1)) -> 31-40 | L73: =SUMPRODUCT((Data!$B$17:$B$19=Model!$F73)*(Data!$C$16:$K$16=Model!$K73)*(Data!$C$17:$K$19)) -> 2.52 | M73: 124.88 | N73: =_xlfn.IFS(M73>70,"Serviceable",M73>30, "Limited Life",M73<=30, "Unserviceable") -> Serviceable
B74: 82 | C74: 1985 | D74: Wood Untreated Dressed | E74: Serviceable | F74: Class 1 | G74: 2017 | H74: 140 | I74: 132.44 | J74: 8 | K74: =INDEX(Lists!$B$32:$B$40, MATCH(2020-C74, Lists!$C$32:$C$40,1)) -> 31-40 | L74: =SUMPRODUCT((Data!$B$17:$B$19=Model!$F74)*(Data!$C$16:$K$16=Model!$K74)*(Data!$C$17:$K$19)) -> 2.52 | M74: 119.84 | N74: =_xlfn.IFS(M74>70,"Serviceable",M74>30, "Limited Life",M74<=30, "Unserviceable") -> Serviceable
B75: 83 | C75: 1983 | D75: Wood Untreated Dressed | E75: Serviceable | F75: Class 1 | G75: 2019 | H75: 130 | I75: 127.48 | J75: 6 | K75: =INDEX(Lists!$B$32:$B$40, MATCH(2020-C75, Lists!$C$32:$C$40,1)) -> 31-40 | L75: =SUMPRODUCT((Data!$B$17:$B$19=Model!$F75)*(Data!$C$16:$K$16=Model!$K75)*(Data!$C$17:$K$19)) -> 2.52 | M75: 114.88 | N75: =_xlfn.IFS(M75>70,"Serviceable",M75>30, "Limited Life",M75<=30, "Unserviceable") -> Serviceable
B76: 84 | C76: 1983 | D76: Wood Untreated Dressed | E76: Serviceable | F76: Class 1 | G76: 2017 | H76: 140 | I76: 132.44 | J76: 8 | K76: =INDEX(Lists!$B$32:$B$40, MATCH(2020-C76, Lists!$C$32:$C$40,1)) -> 31-40 | L76: =SUMPRODUCT((Data!$B$17:$B$19=Model!$F76)*(Data!$C$16:$K$16=Model!$K76)*(Data!$C$17:$K$19)) -> 2.52 | M76: 119.84 | N76: =_xlfn.IFS(M76>70,"Serviceable",M76>30, "Limited Life",M76<=30, "Unserviceable") -> Serviceable
B77: 85 | C77: 1983 | D77: Wood Untreated Dressed | E77: Serviceable | F77: Class 1 | G77: 2016 | H77: 130 | I77: 119.92 | J77: 9 | K77: =INDEX(Lists!$B$32:$B$40, MATCH(2020-C77, Lists!$C$32:$C$40,1)) -> 31-40 | L77: =SUMPRODUCT((Data!$B$17:$B$19=Model!$F77)*(Data!$C$16:$K$16=Model!$K77)*(Data!$C$17:$K$19)) -> 2.52 | M77: 107.32 | N77: =_xlfn.IFS(M77>70,"Serviceable",M77>30, "Limited Life",M77<=30, "Unserviceable") -> Serviceable
B78: 87 | C78: 1973 | D78: Wood Creos Impregnated | E78: Serviceable | F78: Class 3 | G78: 2017 | H78: 110 | I78: 98.66 | J78: 8 | K78: =INDEX(Lists!$B$32:$B$40, MATCH(2020-C78, Lists!$C$32:$C$40,1)) -> 41-50 | L78: =SUMPRODUCT((Data!$B$17:$B$19=Model!$F78)*(Data!$C$16:$K$16=Model!$K78)*(Data!$C$17:$K$19)) -> 3.78 | M78: 79.76 | N78: =_xlfn.IFS(M78>70,"Serviceable",M78>30, "Limited Life",M78<=30, "Unserviceable") -> Serviceable
B79: 88 | C79: 1992 | D79: Wood Untreated Dressed | E79: Serviceable | F79: Class 1 | G79: 2016 | H79: 150 | I79: 142.16 | J79: 9 | K79: =INDEX(Lists!$B$32:$B$40, MATCH(2020-C79, Lists!$C$32:$C$40,1)) -> 21-30 | L79: =SUMPRODUCT((Data!$B$17:$B$19=Model!$F79)*(Data!$C$16:$K$16=Model!$K79)*(Data!$C$17:$K$19)) -> 1.96 | M79: 132.36 | N79: =_xlfn.IFS(M79>70,"Serviceable",M79>30, "Limited Life",M79<=30, "Unserviceable") -> Serviceable
B80: 89 | C80: 1981 | D80: Wood Untreated Dressed | E80: Serviceable | F80: Class 1 | G80: 2016 | H80: 120 | I80: 109.92 | J80: 9 | K80: =INDEX(Lists!$B$32:$B$40, MATCH(2020-C80, Lists!$C$32:$C$40,1)) -> 31-40 | L80: =SUMPRODUCT((Data!$B$17:$B$19=Model!$F80)*(Data!$C$16:$K$16=Model!$K80)*(Data!$C$17:$K$19)) -> 2.52 | M80: 97.32 | N80: =_xlfn.IFS(M80>70,"Serviceable",M80>30, "Limited Life",M80<=30, "Unserviceable") -> Serviceable
B81: 90 | C81: 1981 | D81: Wood Untreated Dressed | E81: Serviceable | F81: Class 1 | G81: 2020 | H81: 110 | I81: 110 | J81: 5 | K81: =INDEX(Lists!$B$32:$B$40, MATCH(2020-C81, Lists!$C$32:$C$40,1)) -> 31-40 | L81: =SUMPRODUCT((Data!$B$17:$B$19=Model!$F81)*(Data!$C$16:$K$16=Model!$K81)*(Data!$C$17:$K$19)) -> 2.52 | M81: 97.4 | N81: =_xlfn.IFS(M81>70,"Serviceable",M81>30, "Limited Life",M81<=30, "Unserviceable") -> Serviceable
B82: 91 | C82: 1982 | D82: Wood Untreated Dressed | E82: Serviceable | F82: Class 1 | G82: 2020 | H82: 110 | I82: 110 | J82: 5 | K82: =INDEX(Lists!$B$32:$B$40, MATCH(2020-C82, Lists!$C$32:$C$40,1)) -> 31-40 | L82: =SUMPRODUCT((Data!$B$17:$B$19=Model!$F82)*(Data!$C$16:$K$16=Model!$K82)*(Data!$C$17:$K$19)) -> 2.52 | M82: 97.4 | N82: =_xlfn.IFS(M82>70,"Serviceable",M82>30, "Limited Life",M82<=30, "Unserviceable") -> Serviceable
B83: 92 | C83: 1982 | D83: Wood Untreated Dressed | E83: Serviceable | F83: Class 1 | G83: 2016 | H83: 120 | I83: 109.92 | J83: 9 | K83: =INDEX(Lists!$B$32:$B$40, MATCH(2020-C83, Lists!$C$32:$C$40,1)) -> 31-40 | L83: =SUMPRODUCT((Data!$B$17:$B$19=Model!$F83)*(Data!$C$16:$K$16=Model!$K83)*(Data!$C$17:$K$19)) -> 2.52 | M83: 97.32 | N83: =_xlfn.IFS(M83>70,"Serviceable",M83>30, "Limited Life",M83<=30, "Unserviceable") -> Serviceable
B84: 94 | C84: 1982 | D84: Wood Untreated Dressed | E84: Serviceable | F84: Class 1 | G84: 2020 | H84: 140 | I84: 140 | J84: 5 | K84: =INDEX(Lists!$B$32:$B$40, MATCH(2020-C84, Lists!$C$32:$C$40,1)) -> 31-40 | L84: =SUMPRODUCT((Data!$B$17:$B$19=Model!$F84)*(Data!$C$16:$K$16=Model!$K84)*(Data!$C$17:$K$19)) -> 2.52 | M84: 127.4 | N84: =_xlfn.IFS(M84>70,"Serviceable",M84>30, "Limited Life",M84<=30, "Unserviceable") -> Serviceable
B85: 96 | C85: 1982 | D85: Wood Untreated Dressed | E85: Serviceable | F85: Class 1 | G85: 2016 | H85: 150 | I85: 139.92 | J85: 9 | K85: =INDEX(Lists!$B$32:$B$40, MATCH(2020-C85, Lists!$C$32:$C$40,1)) -> 31-40 | L85: =SUMPRODUCT((Data!$B$17:$B$19=Model!$F85)*(Data!$C$16:$K$16=Model!$K85)*(Data!$C$17:$K$19)) -> 2.52 | M85: 127.32 | N85: =_xlfn.IFS(M85>70,"Serviceable",M85>30, "Limited Life",M85<=30, "Unserviceable") -> Serviceable
B86: 98 | C86: 1982 | D86: Wood Untreated Dressed | E86: Serviceable | F86: Class 1 | G86: 2016 | H86: 150 | I86: 139.92 | J86: 9 | K86: =INDEX(Lists!$B$32:$B$40, MATCH(2020-C86, Lists!$C$32:$C$40,1)) -> 31-40 | L86: =SUMPRODUCT((Data!$B$17:$B$19=Model!$F86)*(Data!$C$16:$K$16=Model!$K86)*(Data!$C$17:$K$19)) -> 2.52 | M86: 127.32 | N86: =_xlfn.IFS(M86>70,"Serviceable",M86>30, "Limited Life",M86<=30, "Unserviceable") -> Serviceable
B87: 99 | C87: 1982 | D87: Wood Untreated Dressed | E87: Serviceable | F87: Class 1 | G87: 2016 | H87: 120 | I87: 109.92 | J87: 9 | K87: =INDEX(Lists!$B$32:$B$40, MATCH(2020-C87, Lists!$C$32:$C$40,1)) -> 31-40 | L87: =SUMPRODUCT((Data!$B$17:$B$19=Model!$F87)*(Data!$C$16:$K$16=Model!$K87)*(Data!$C$17:$K$19)) -> 2.52 | M87: 97.32 | N87: =_xlfn.IFS(M87>70,"Serviceable",M87>30, "Limited Life",M87<=30, "Unserviceable") -> Serviceable
B88: 100 | C88: 1982 | D88: Wood Untreated Dressed | E88: Serviceable | F88: Class 1 | G88: 2016 | H88: 110 | I88: 99.92 | J88: 9 | K88: =INDEX(Lists!$B$32:$B$40, MATCH(2020-C88, Lists!$C$32:$C$40,1)) -> 31-40 | L88: =SUMPRODUCT((Data!$B$17:$B$19=Model!$F88)*(Data!$C$16:$K$16=Model!$K88)*(Data!$C$17:$K$19)) -> 2.52 | M88: 87.32 | N88: =_xlfn.IFS(M88>70,"Serviceable",M88>30, "Limited Life",M88<=30, "Unserviceable") -> Serviceable
B89: 101 | C89: 1982 | D89: Wood Untreated Dressed | E89: Serviceable | F89: Class 1 | G89: 2016 | H89: 150 | I89: 139.92 | J89: 9 | K89: =INDEX(Lists!$B$32:$B$40, MATCH(2020-C89, Lists!$C$32:$C$40,1)) -> 31-40 | L89: =SUMPRODUCT((Data!$B$17:$B$19=Model!$F89)*(Data!$C$16:$K$16=Model!$K89)*(Data!$C$17:$K$19)) -> 2.52 | M89: 127.32 | N89: =_xlfn.IFS(M89>70,"Serviceable",M89>30, "Limited Life",M89<=30, "Unserviceable") -> Serviceable
B90: 102 | C90: 1983 | D90: Wood Untreated Dressed | E90: Serviceable | F90: Class 1 | G90: 2016 | H90: 120 | I90: 109.92 | J90: 9 | K90: =INDEX(Lists!$B$32:$B$40, MATCH(2020-C90, Lists!$C$32:$C$40,1)) -> 31-40 | L90: =SUMPRODUCT((Data!$B$17:$B$19=Model!$F90)*(Data!$C$16:$K$16=Model!$K90)*(Data!$C$17:$K$19)) -> 2.52 | M90: 97.32 | N90: =_xlfn.IFS(M90>70,"Serviceable",M90>30, "Limited Life",M90<=30, "Unserviceable") -> Serviceable
B91: 103 | C91: 1983 | D91: Wood Untreated Dressed | E91: Serviceable | F91: Class 1 | G91: 2016 | H91: 110 | I91: 99.92 | J91: 9 | K91: =INDEX(Lists!$B$32:$B$40, MATCH(2020-C91, Lists!$C$32:$C$40,1)) -> 31-40 | L91: =SUMPRODUCT((Data!$B$17:$B$19=Model!$F91)*(Data!$C$16:$K$16=Model!$K91)*(Data!$C$17:$K$19)) -> 2.52 | M91: 87.32 | N91: =_xlfn.IFS(M91>70,"Serviceable",M91>30, "Limited Life",M91<=30, "Unserviceable") -> Serviceable
B92: 104 | C92: 1983 | D92: Wood Untreated Dressed | E92: Serviceable | F92: Class 1 | G92: 2016 | H92: 120 | I92: 109.92 | J92: 9 | K92: =INDEX(Lists!$B$32:$B$40, MATCH(2020-C92, Lists!$C$32:$C$40,1)) -> 31-40 | L92: =SUMPRODUCT((Data!$B$17:$B$19=Model!$F92)*(Data!$C$16:$K$16=Model!$K92)*(Data!$C$17:$K$19)) -> 2.52 | M92: 97.32 | N92: =_xlfn.IFS(M92>70,"Serviceable",M92>30, "Limited Life",M92<=30, "Unserviceable") -> Serviceable
B93: 105 | C93: 1983 | D93: Wood Untreated Dressed | E93: Serviceable | F93: Class 1 | G93: 2016 | H93: 130 | I93: 119.92 | J93: 9 | K93: =INDEX(Lists!$B$32:$B$40, MATCH(2020-C93, Lists!$C$32:$C$40,1)) -> 31-40 | L93: =SUMPRODUCT((Data!$B$17:$B$19=Model!$F93)*(Data!$C$16:$K$16=Model!$K93)*(Data!$C$17:$K$19)) -> 2.52 | M93: 107.32 | N93: =_xlfn.IFS(M93>70,"Serviceable",M93>30, "Limited Life",M93<=30, "Unserviceable") -> Serviceable
B94: 106 | C94: 1983 | D94: Wood Untreated Dressed | E94: Serviceable | F94: Class 1 | G94: 2016 | H94: 130 | I94: 119.92 | J94: 9 | K94: =INDEX(Lists!$B$32:$B$40, MATCH(2020-C94, Lists!$C$32:$C$40,1)) -> 31-40 | L94: =SUMPRODUCT((Data!$B$17:$B$19=Model!$F94)*(Data!$C$16:$K$16=Model!$K94)*(Data!$C$17:$K$19)) -> 2.52 | M94: 107.32 | N94: =_xlfn.IFS(M94>70,"Serviceable",M94>30, "Limited Life",M94<=30, "Unserviceable") -> Serviceable
B95: 107 | C95: 1983 | D95: Wood Untreated Dressed | E95: Serviceable | F95: Class 1 | G95: 2016 | H95: 120 | I95: 109.92 | J95: 9 | K95: =INDEX(Lists!$B$32:$B$40, MATCH(2020-C95, Lists!$C$32:$C$40,1)) -> 31-40 | L95: =SUMPRODUCT((Data!$B$17:$B$19=Model!$F95)*(Data!$C$16:$K$16=Model!$K95)*(Data!$C$17:$K$19)) -> 2.52 | M95: 97.32 | N95: =_xlfn.IFS(M95>70,"Serviceable",M95>30, "Limited Life",M95<=30, "Unserviceable") -> Serviceable
B96: 108 | C96: 1983 | D96: Wood Untreated Dressed | E96: Serviceable | F96: Class 1 | G96: 2016 | H96: 120 | I96: 109.92 | J96: 9 | K96: =INDEX(Lists!$B$32:$B$40, MATCH(2020-C96, Lists!$C$32:$C$40,1)) -> 31-40 | L96: =SUMPRODUCT((Data!$B$17:$B$19=Model!$F96)*(Data!$C$16:$K$16=Model!$K96)*(Data!$C$17:$K$19)) -> 2.52 | M96: 97.32 | N96: =_xlfn.IFS(M96>70,"Serviceable",M96>30, "Limited Life",M96<=30, "Unserviceable") -> Serviceable
B97: 109 | C97: 1983 | D97: Wood Untreated Dressed | E97: Serviceable | F97: Class 1 | G97: 2016 | H97: 130 | I97: 119.92 | J97: 9 | K97: =INDEX(Lists!$B$32:$B$40, MATCH(2020-C97, Lists!$C$32:$C$40,1)) -> 31-40 | L97: =SUMPRODUCT((Data!$B$17:$B$19=Model!$F97)*(Data!$C$16:$K$16=Model!$K97)*(Data!$C$17:$K$19)) -> 2.52 | M97: 107.32 | N97: =_xlfn.IFS(M97>70,"Serviceable",M97>30, "Limited Life",M97<=30, "Unserviceable") -> Serviceable
B98: 110 | C98: 1982 | D98: Wood Untreated Dressed | E98: Serviceable | F98: Class 1 | G98: 2016 | H98: 150 | I98: 139.92 | J98: 9 | K98: =INDEX(Lists!$B$32:$B$40, MATCH(2020-C98, Lists!$C$32:$C$40,1)) -> 31-40 | L98: =SUMPRODUCT((Data!$B$17:$B$19=Model!$F98)*(Data!$C$16:$K$16=Model!$K98)*(Data!$C$17:$K$19)) -> 2.52 | M98: 127.32 | N98: =_xlfn.IFS(M98>70,"Serviceable",M98>30, "Limited Life",M98<=30, "Unserviceable") -> Serviceable
B99: 111 | C99: 1982 | D99: Wood Untreated Dressed | E99: Serviceable | F99: Class 1 | G99: 2016 | H99: 120 | I99: 109.92 | J99: 9 | K99: =INDEX(Lists!$B$32:$B$40, MATCH(2020-C99, Lists!$C$32:$C$40,1)) -> 31-40 | L99: =SUMPRODUCT((Data!$B$17:$B$19=Model!$F99)*(Data!$C$16:$K$16=Model!$K99)*(Data!$C$17:$K$19)) -> 2.52 | M99: 97.32 | N99: =_xlfn.IFS(M99>70,"Serviceable",M99>30, "Limited Life",M99<=30, "Unserviceable") -> Serviceable
B100: 112 | C100: 1985 | D100: Wood Untreated Dressed | E100: Serviceable | F100: Class 1 | G100: 2016 | H100: 120 | I100: 109.92 | J100: 9 | K100: =INDEX(Lists!$B$32:$B$40, MATCH(2020-C100, Lists!$C$32:$C$40,1)) -> 31-40 | L100: =SUMPRODUCT((Data!$B$17:$B$19=Model!$F100)*(Data!$C$16:$K$16=Model!$K100)*(Data!$C$17:$K$19)) -> 2.52 | M100: 97.32 | N100: =_xlfn.IFS(M100>70,"Serviceable",M100>30, "Limited Life",M100<=30, "Unserviceable") -> Serviceable
B101: 113 | C101: 1983 | D101: Wood Untreated Dressed | E101: Serviceable | F101: Class 1 | G101: 2016 | H101: 150 | I101: 139.92 | J101: 9 | K101: =INDEX(Lists!$B$32:$B$40, MATCH(2020-C101, Lists!$C$32:$C$40,1)) -> 31-40 | L101: =SUMPRODUCT((Data!$B$17:$B$19=Model!$F101)*(Data!$C$16:$K$16=Model!$K101)*(Data!$C$17:$K$19)) -> 2.52 | M101: 127.32 | N101: =_xlfn.IFS(M101>70,"Serviceable",M101>30, "Limited Life",M101<=30, "Unserviceable") -> Serviceable
B102: 114 | C102: 1983 | D102: Wood Untreated Dressed | E102: Serviceable | F102: Class 1 | G102: 2016 | H102: 140 | I102: 129.92 | J102: 9 | K102: =INDEX(Lists!$B$32:$B$40, MATCH(2020-C102, Lists!$C$32:$C$40,1)) -> 31-40 | L102: =SUMPRODUCT((Data!$B$17:$B$19=Model!$F102)*(Data!$C$16:$K$16=Model!$K102)*(Data!$C$17:$K$19)) -> 2.52 | M102: 117.32 | N102: =_xlfn.IFS(M102>70,"Serviceable",M102>30, "Limited Life",M102<=30, "Unserviceable") -> Serviceable
B103: 116 | C103: 1983 | D103: Wood Untreated Dressed | E103: Serviceable | F103: Class 1 | G103: 2020 | H103: 100 | I103: 100 | J103: 5 | K103: =INDEX(Lists!$B$32:$B$40, MATCH(2020-C103, Lists!$C$32:$C$40,1)) -> 31-40 | L103: =SUMPRODUCT((Data!$B$17:$B$19=Model!$F103)*(Data!$C$16:$K$16=Model!$K103)*(Data!$C$17:$K$19)) -> 2.52 | M103: 87.4 | N103: =_xlfn.IFS(M103>70,"Serviceable",M103>30, "Limited Life",M103<=30, "Unserviceable") -> Serviceable
B104: 118 | C104: 2008 | D104: CCA Treated Pole | E104: Serviceable | F104: Class 1 | G104: 2016 | H104: 160 | I104: 155.76 | J104: 9 | K104: =INDEX(Lists!$B$32:$B$40, MATCH(2020-C104, Lists!$C$32:$C$40,1)) -> 0-20 | L104: =SUMPRODUCT((Data!$B$17:$B$19=Model!$F104)*(Data!$C$16:$K$16=Model!$K104)*(Data!$C$17:$K$19)) -> 1.06 | M104: 150.46 | N104: =_xlfn.IFS(M104>70,"Serviceable",M104>30, "Limited Life",M104<=30, "Unserviceable") -> Serviceable
B105: 120 | C105: 1983 | D105: Wood Untreated Dressed | E105: Serviceable | F105: Class 1 | G105: 2016 | H105: 120 | I105: 109.92 | J105: 9 | K105: =INDEX(Lists!$B$32:$B$40, MATCH(2020-C105, Lists!$C$32:$C$40,1)) -> 31-40 | L105: =SUMPRODUCT((Data!$B$17:$B$19=Model!$F105)*(Data!$C$16:$K$16=Model!$K105)*(Data!$C$17:$K$19)) -> 2.52 | M105: 97.32 | N105: =_xlfn.IFS(M105>70,"Serviceable",M105>30, "Limited Life",M105<=30, "Unserviceable") -> Serviceable
B106: 121 | C106: 1983 | D106: Wood Untreated Dressed | E106: Serviceable | F106: Class 1 | G106: 2016 | H106: 120 | I106: 109.92 | J106: 9 | K106: =INDEX(Lists!$B$32:$B$40, MATCH(2020-C106, Lists!$C$32:$C$40,1)) -> 31-40 | L106: =SUMPRODUCT((Data!$B$17:$B$19=Model!$F106)*(Data!$C$16:$K$16=Model!$K106)*(Data!$C$17:$K$19)) -> 2.52 | M106: 97.32 | N106: =_xlfn.IFS(M106>70,"Serviceable",M106>30, "Limited Life",M106<=30, "Unserviceable") -> Serviceable
B107: 122 | C107: 1983 | D107: Wood Untreated Dressed | E107: Serviceable | F107: Class 1 | G107: 2016 | H107: 120 | I107: 109.92 | J107: 9 | K107: =INDEX(Lists!$B$32:$B$40, MATCH(2020-C107, Lists!$C$32:$C$40,1)) -> 31-40 | L107: =SUMPRODUCT((Data!$B$17:$B$19=Model!$F107)*(Data!$C$16:$K$16=Model!$K107)*(Data!$C$17:$K$19)) -> 2.52 | M107: 97.32 | N107: =_xlfn.IFS(M107>70,"Serviceable",M107>30, "Limited Life",M107<=30, "Unserviceable") -> Serviceable
B108: 123 | C108: 1983 | D108: Wood Untreated Dressed | E108: Serviceable | F108: Class 1 | G108: 2016 | H108: 120 | I108: 109.92 | J108: 9 | K108: =INDEX(Lists!$B$32:$B$40, MATCH(2020-C108, Lists!$C$32:$C$40,1)) -> 31-40 | L108: =SUMPRODUCT((Data!$B$17:$B$19=Model!$F108)*(Data!$C$16:$K$16=Model!$K108)*(Data!$C$17:$K$19)) -> 2.52 | M108: 97.32 | N108: =_xlfn.IFS(M108>70,"Serviceable",M108>30, "Limited Life",M108<=30, "Unserviceable") -> Serviceable
B109: 124 | C109: 1983 | D109: Wood Untreated Dressed | E109: Serviceable | F109: Class 1 | G109: 2016 | H109: 120 | I109: 109.92 | J109: 9 | K109: =INDEX(Lists!$B$32:$B$40, MATCH(2020-C109, Lists!$C$32:$C$40,1)) -> 31-40 | L109: =SUMPRODUCT((Data!$B$17:$B$19=Model!$F109)*(Data!$C$16:$K$16=Model!$K109)*(Data!$C$17:$K$19)) -> 2.52 | M109: 97.32 | N109: =_xlfn.IFS(M109>70,"Serviceable",M109>30, "Limited Life",M109<=30, "Unserviceable") -> Serviceable
B110: 125 | C110: 1983 | D110: Wood Untreated Dressed | E110: Serviceable | F110: Class 1 | G110: 2016 | H110: 120 | I110: 109.92 | J110: 9 | K110: =INDEX(Lists!$B$32:$B$40, MATCH(2020-C110, Lists!$C$32:$C$40,1)) -> 31-40 | L110: =SUMPRODUCT((Data!$B$17:$B$19=Model!$F110)*(Data!$C$16:$K$16=Model!$K110)*(Data!$C$17:$K$19)) -> 2.52 | M110: 97.32 | N110: =_xlfn.IFS(M110>70,"Serviceable",M110>30, "Limited Life",M110<=30, "Unserviceable") -> Serviceable
B111: 126 | C111: 1982 | D111: Wood Untreated Dressed | E111: Serviceable | F111: Class 1 | G111: 2016 | H111: 110 | I111: 99.92 | J111: 9 | K111: =INDEX(Lists!$B$32:$B$40, MATCH(2020-C111, Lists!$C$32:$C$40,1)) -> 31-40 | L111: =SUMPRODUCT((Data!$B$17:$B$19=Model!$F111)*(Data!$C$16:$K$16=Model!$K111)*(Data!$C$17:$K$19)) -> 2.52 | M111: 87.32 | N111: =_xlfn.IFS(M111>70,"Serviceable",M111>30, "Limited Life",M111<=30, "Unserviceable") -> Serviceable
B112: 129 | C112: 1982 | D112: Wood Untreated Dressed | E112: Serviceable | F112: Class 1 | G112: 2016 | H112: 150 | I112: 139.92 | J112: 9 | K112: =INDEX(Lists!$B$32:$B$40, MATCH(2020-C112, Lists!$C$32:$C$40,1)) -> 31-40 | L112: =SUMPRODUCT((Data!$B$17:$B$19=Model!$F112)*(Data!$C$16:$K$16=Model!$K112)*(Data!$C$17:$K$19)) -> 2.52 | M112: 127.32 | N112: =_xlfn.IFS(M112>70,"Serviceable",M112>30, "Limited Life",M112<=30, "Unserviceable") -> Serviceable
B113: 130 | C113: 1967 | D113: Wood Creos Impregnated | E113: Serviceable | F113: Class 3 | G113: 2018 | H113: 100 | I113: 94.54 | J113: 7 | K113: =INDEX(Lists!$B$32:$B$40, MATCH(2020-C113, Lists!$C$32:$C$40,1)) -> 51-60 | L113: =SUMPRODUCT((Data!$B$17:$B$19=Model!$F113)*(Data!$C$16:$K$16=Model!$K113)*(Data!$C$17:$K$19)) -> 2.73 | M113: 80.89 | N113: =_xlfn.IFS(M113>70,"Serviceable",M113>30, "Limited Life",M113<=30, "Unserviceable") -> Serviceable
B114: 131 | C114: 1967 | D114: Wood Creos Impregnated | E114: Serviceable | F114: Class 3 | G114: 2018 | H114: 100 | I114: 94.54 | J114: 7 | K114: =INDEX(Lists!$B$32:$B$40, MATCH(2020-C114, Lists!$C$32:$C$40,1)) -> 51-60 | L114: =SUMPRODUCT((Data!$B$17:$B$19=Model!$F114)*(Data!$C$16:$K$16=Model!$K114)*(Data!$C$17:$K$19)) -> 2.73 | M114: 80.89 | N114: =_xlfn.IFS(M114>70,"Serviceable",M114>30, "Limited Life",M114<=30, "Unserviceable") -> Serviceable
B115: 132 | C115: 1966 | D115: Wood Creos Impregnated | E115: Limited Life | F115: Class 3 | G115: 2018 | H115: 70 | I115: 64.54 | J115: 7 | K115: =INDEX(Lists!$B$32:$B$40, MATCH(2020-C115, Lists!$C$32:$C$40,1)) -> 51-60 | L115: =SUMPRODUCT((Data!$B$17:$B$19=Model!$F115)*(Data!$C$16:$K$16=Model!$K115)*(Data!$C$17:$K$19)) -> 2.73 | M115: 50.89 | N115: =_xlfn.IFS(M115>70,"Serviceable",M115>30, "Limited Life",M115<=30, "Unserviceable") -> Limited Life
B116: 133 | C116: 1966 | D116: Wood Creos Impregnated | E116: Serviceable | F116: Class 3 | G116: 2018 | H116: 80 | I116: 74.54 | J116: 7 | K116: =INDEX(Lists!$B$32:$B$40, MATCH(2020-C116, Lists!$C$32:$C$40,1)) -> 51-60 | L116: =SUMPRODUCT((Data!$B$17:$B$19=Model!$F116)*(Data!$C$16:$K$16=Model!$K116)*(Data!$C$17:$K$19)) -> 2.73 | M116: 60.89 | N116: =_xlfn.IFS(M116>70,"Serviceable",M116>30, "Limited Life",M116<=30, "Unserviceable") -> Limited Life
B117: 134 | C117: 1966 | D117: Wood Creos Impregnated | E117: Limited Life | F117: Class 3 | G117: 2018 | H117: 70 | I117: 64.54 | J117: 7 | K117: =INDEX(Lists!$B$32:$B$40, MATCH(2020-C117, Lists!$C$32:$C$40,1)) -> 51-60 | L117: =SUMPRODUCT((Data!$B$17:$B$19=Model!$F117)*(Data!$C$16:$K$16=Model!$K117)*(Data!$C$17:$K$19)) -> 2.73 | M117: 50.89 | N117: =_xlfn.IFS(M117>70,"Serviceable",M117>30, "Limited Life",M117<=30, "Unserviceable") -> Limited Life
B118: 135 | C118: 1966 | D118: Wood Creos Impregnated | E118: Serviceable | F118: Class 3 | G118: 2017 | H118: 100 | I118: 91.81 | J118: 8 | K118: =INDEX(Lists!$B$32:$B$40, MATCH(2020-C118, Lists!$C$32:$C$40,1)) -> 51-60 | L118: =SUMPRODUCT((Data!$B$17:$B$19=Model!$F118)*(Data!$C$16:$K$16=Model!$K118)*(Data!$C$17:$K$19)) -> 2.73 | M118: 78.16 | N118: =_xlfn.IFS(M118>70,"Serviceable",M118>30, "Limited Life",M118<=30, "Unserviceable") -> Serviceable
B119: 137 | C119: 1985 | D119: Wood Untreated Dressed | E119: Serviceable | F119: Class 1 | G119: 2017 | H119: 140 | I119: 132.44 | J119: 8 | K119: =INDEX(Lists!$B$32:$B$40, MATCH(2020-C119, Lists!$C$32:$C$40,1)) -> 31-40 | L119: =SUMPRODUCT((Data!$B$17:$B$19=Model!$F119)*(Data!$C$16:$K$16=Model!$K119)*(Data!$C$17:$K$19)) -> 2.52 | M119: 119.84 | N119: =_xlfn.IFS(M119>70,"Serviceable",M119>30, "Limited Life",M119<=30, "Unserviceable") -> Serviceable
B120: 138 | C120: 1962 | D120: Wood Creos Impregnated | E120: Serviceable | F120: Class 3 | G120: 2018 | H120: 90 | I120: 84.54 | J120: 7 | K120: =INDEX(Lists!$B$32:$B$40, MATCH(2020-C120, Lists!$C$32:$C$40,1)) -> 51-60 | L120: =SUMPRODUCT((Data!$B$17:$B$19=Model!$F120)*(Data!$C$16:$K$16=Model!$K120)*(Data!$C$17:$K$19)) -> 2.73 | M120: 70.89 | N120: =_xlfn.IFS(M120>70,"Serviceable",M120>30, "Limited Life",M120<=30, "Unserviceable") -> Serviceable
B121: 139 | C121: 1966 | D121: Wood Creos Impregnated | E121: Serviceable | F121: Class 3 | G121: 2019 | H121: 90 | I121: 87.27 | J121: 6 | K121: =INDEX(Lists!$B$32:$B$40, MATCH(2020-C121, Lists!$C$32:$C$40,1)) -> 51-60 | L121: =SUMPRODUCT((Data!$B$17:$B$19=Model!$F121)*(Data!$C$16:$K$16=Model!$K121)*(Data!$C$17:$K$19)) -> 2.73 | M121: 73.62 | N121: =_xlfn.IFS(M121>70,"Serviceable",M121>30, "Limited Life",M121<=30, "Unserviceable") -> Serviceable
B122: 140 | C122: 1984 | D122: Wood Creos Impregnated | E122: Serviceable | F122: Class 2 | G122: 2018 | H122: 110 | I122: 105.34 | J122: 7 | K122: =INDEX(Lists!$B$32:$B$40, MATCH(2020-C122, Lists!$C$32:$C$40,1)) -> 31-40 | L122: =SUMPRODUCT((Data!$B$17:$B$19=Model!$F122)*(Data!$C$16:$K$16=Model!$K122)*(Data!$C$17:$K$19)) -> 2.33 | M122: 93.69 | N122: =_xlfn.IFS(M122>70,"Serviceable",M122>30, "Limited Life",M122<=30, "Unserviceable") -> Serviceable
B123: 141 | C123: 1972 | D123: Wood Creos Impregnated | E123: Serviceable | F123: Class 2 | G123: 2018 | H123: 120 | I123: 113.44 | J123: 7 | K123: =INDEX(Lists!$B$32:$B$40, MATCH(2020-C123, Lists!$C$32:$C$40,1)) -> 41-50 | L123: =SUMPRODUCT((Data!$B$17:$B$19=Model!$F123)*(Data!$C$16:$K$16=Model!$K123)*(Data!$C$17:$K$19)) -> 3.28 | M123: 97.04 | N123: =_xlfn.IFS(M123>70,"Serviceable",M123>30, "Limited Life",M123<=30, "Unserviceable") -> Serviceable
B124: 142 | C124: 1970 | D124: Wood Creos Impregnated | E124: Serviceable | F124: Class 3 | G124: 2017 | H124: 100 | I124: 88.66 | J124: 8 | K124: =INDEX(Lists!$B$32:$B$40, MATCH(2020-C124, Lists!$C$32:$C$40,1)) -> 41-50 | L124: =SUMPRODUCT((Data!$B$17:$B$19=Model!$F124)*(Data!$C$16:$K$16=Model!$K124)*(Data!$C$17:$K$19)) -> 3.78 | M124: 69.76 | N124: =_xlfn.IFS(M124>70,"Serviceable",M124>30, "Limited Life",M124<=30, "Unserviceable") -> Limited Life
B125: 143 | C125: 1990 | D125: Wood Untreated Dressed | E125: Serviceable | F125: Class 1 | G125: 2018 | H125: 120 | I125: 116.08 | J125: 7 | K125: =INDEX(Lists!$B$32:$B$40, MATCH(2020-C125, Lists!$C$32:$C$40,1)) -> 21-30 | L125: =SUMPRODUCT((Data!$B$17:$B$19=Model!$F125)*(Data!$C$16:$K$16=Model!$K125)*(Data!$C$17:$K$19)) -> 1.96 | M125: 106.28 | N125: =_xlfn.IFS(M125>70,"Serviceable",M125>30, "Limited Life",M125<=30, "Unserviceable") -> Serviceable
B126: 144 | C126: 1967 | D126: Wood Creos Impregnated | E126: Serviceable | F126: Class 3 | G126: 2017 | H126: 100 | I126: 91.81 | J126: 8 | K126: =INDEX(Lists!$B$32:$B$40, MATCH(2020-C126, Lists!$C$32:$C$40,1)) -> 51-60 | L126: =SUMPRODUCT((Data!$B$17:$B$19=Model!$F126)*(Data!$C$16:$K$16=Model!$K126)*(Data!$C$17:$K$19)) -> 2.73 | M126: 78.16 | N126: =_xlfn.IFS(M126>70,"Serviceable",M126>30, "Limited Life",M126<=30, "Unserviceable") -> Serviceable
B127: 145 | C127: 1970 | D127: Wood Creos Impregnated | E127: Serviceable | F127: Class 3 | G127: 2017 | H127: 100 | I127: 88.66 | J127: 8 | K127: =INDEX(Lists!$B$32:$B$40, MATCH(2020-C127, Lists!$C$32:$C$40,1)) -> 41-50 | L127: =SUMPRODUCT((Data!$B$17:$B$19=Model!$F127)*(Data!$C$16:$K$16=Model!$K127)*(Data!$C$17:$K$19)) -> 3.78 | M127: 69.76 | N127: =_xlfn.IFS(M127>70,"Serviceable",M127>30, "Limited Life",M127<=30, "Unserviceable") -> Limited Life
B128: 146 | C128: 1973 | D128: Wood Creos Impregnated | E128: Limited Life | F128: Class 3 | G128: 2017 | H128: 70 | I128: 58.66 | J128: 8 | K128: =INDEX(Lists!$B$32:$B$40, MATCH(2020-C128, Lists!$C$32:$C$40,1)) -> 41-50 | L128: =SUMPRODUCT((Data!$B$17:$B$19=Model!$F128)*(Data!$C$16:$K$16=Model!$K128)*(Data!$C$17:$K$19)) -> 3.78 | M128: 39.76 | N128: =_xlfn.IFS(M128>70,"Serviceable",M128>30, "Limited Life",M128<=30, "Unserviceable") -> Limited Life
B129: 148 | C129: 1968 | D129: Wood Creos Impregnated | E129: Serviceable | F129: Class 3 | G129: 2017 | H129: 80 | I129: 71.81 | J129: 8 | K129: =INDEX(Lists!$B$32:$B$40, MATCH(2020-C129, Lists!$C$32:$C$40,1)) -> 51-60 | L129: =SUMPRODUCT((Data!$B$17:$B$19=Model!$F129)*(Data!$C$16:$K$16=Model!$K129)*(Data!$C$17:$K$19)) -> 2.73 | M129: 58.16 | N129: =_xlfn.IFS(M129>70,"Serviceable",M129>30, "Limited Life",M129<=30, "Unserviceable") -> Limited Life
B130: 149 | C130: 1988 | D130: Wood Untreated Dressed | E130: Serviceable | F130: Class 1 | G130: 2017 | H130: 100 | I130: 92.44 | J130: 8 | K130: =INDEX(Lists!$B$32:$B$40, MATCH(2020-C130, Lists!$C$32:$C$40,1)) -> 31-40 | L130: =SUMPRODUCT((Data!$B$17:$B$19=Model!$F130)*(Data!$C$16:$K$16=Model!$K130)*(Data!$C$17:$K$19)) -> 2.52 | M130: 79.84 | N130: =_xlfn.IFS(M130>70,"Serviceable",M130>30, "Limited Life",M130<=30, "Unserviceable") -> Serviceable
B131: 150 | C131: 1995 | D131: Wood Untreated Dressed | E131: Serviceable | F131: Class 1 | G131: 2017 | H131: 150 | I131: 144.12 | J131: 8 | K131: =INDEX(Lists!$B$32:$B$40, MATCH(2020-C131, Lists!$C$32:$C$40,1)) -> 21-30 | L131: =SUMPRODUCT((Data!$B$17:$B$19=Model!$F131)*(Data!$C$16:$K$16=Model!$K131)*(Data!$C$17:$K$19)) -> 1.96 | M131: 134.32 | N131: =_xlfn.IFS(M131>70,"Serviceable",M131>30, "Limited Life",M131<=30, "Unserviceable") -> Serviceable
B132: 151 | C132: 1955 | D132: Wood Untreated Round | E132: Serviceable | F132: Class 2 | G132: 2017 | H132: 90 | I132: 83.31 | J132: 8 | K132: =INDEX(Lists!$B$32:$B$40, MATCH(2020-C132, Lists!$C$32:$C$40,1)) -> 61-70 | L132: =SUMPRODUCT((Data!$B$17:$B$19=Model!$F132)*(Data!$C$16:$K$16=Model!$K132)*(Data!$C$17:$K$19)) -> 2.23 | M132: 72.16 | N132: =_xlfn.IFS(M132>70,"Serviceable",M132>30, "Limited Life",M132<=30, "Unserviceable") -> Serviceable
B133: 152 | C133: 1963 | D133: Wood Creos Impregnated | E133: Serviceable | F133: Class 1 | G133: 2017 | H133: 100 | I133: 95.05 | J133: 8 | K133: =INDEX(Lists!$B$32:$B$40, MATCH(2020-C133, Lists!$C$32:$C$40,1)) -> 51-60 | L133: =SUMPRODUCT((Data!$B$17:$B$19=Model!$F133)*(Data!$C$16:$K$16=Model!$K133)*(Data!$C$17:$K$19)) -> 1.65 | M133: 86.8 | N133: =_xlfn.IFS(M133>70,"Serviceable",M133>30, "Limited Life",M133<=30, "Unserviceable") -> Serviceable
B134: 153 | C134: 1964 | D134: Wood Creos Impregnated | E134: Serviceable | F134: Class 3 | G134: 2017 | H134: 90 | I134: 81.81 | J134: 8 | K134: =INDEX(Lists!$B$32:$B$40, MATCH(2020-C134, Lists!$C$32:$C$40,1)) -> 51-60 | L134: =SUMPRODUCT((Data!$B$17:$B$19=Model!$F134)*(Data!$C$16:$K$16=Model!$K134)*(Data!$C$17:$K$19)) -> 2.73 | M134: 68.16 | N134: =_xlfn.IFS(M134>70,"Serviceable",M134>30, "Limited Life",M134<=30, "Unserviceable") -> Limited Life
B135: 155 | C135: 1967 | D135: Wood Creos Impregnated | E135: Serviceable | F135: Class 3 | G135: 2017 | H135: 100 | I135: 91.81 | J135: 8 | K135: =INDEX(Lists!$B$32:$B$40, MATCH(2020-C135, Lists!$C$32:$C$40,1)) -> 51-60 | L135: =SUMPRODUCT((Data!$B$17:$B$19=Model!$F135)*(Data!$C$16:$K$16=Model!$K135)*(Data!$C$17:$K$19)) -> 2.73 | M135: 78.16 | N135: =_xlfn.IFS(M135>70,"Serviceable",M135>30, "Limited Life",M135<=30, "Unserviceable") -> Serviceable
B136: 156 | C136: 1980 | D136: Wood Creos Impregnated | E136: Serviceable | F136: Class 3 | G136: 2017 | H136: 80 | I136: 70.34 | J136: =2025-G136 -> 8 | K136: =INDEX(Lists!$B$32:$B$40, MATCH(2020-C136, Lists!$C$32:$C$40,1)) -> 31-40 | L136: =SUMPRODUCT((Data!$B$17:$B$19=Model!$F136)*(Data!$C$16:$K$16=Model!$K136)*(Data!$C$17:$K$19)) -> 3.22 | M136: =IF(IF(H136>=700,999,(H136-L136*J136))<0,0,IF(H136>=700,999,(H136-L136*J136))) -> 54.24 | N136: =_xlfn.IFS(M136>70,"Serviceable",M136>30, "Limited Life",M136<=30, "Unserviceable") -> Limited Life
B137: 158 | C137: 1972 | D137: Wood Creos Impregnated | E137: Serviceable | F137: Class 3 | G137: 2017 | H137: 110 | I137: 98.66 | J137: 8 | K137: =INDEX(Lists!$B$32:$B$40, MATCH(2020-C137, Lists!$C$32:$C$40,1)) -> 41-50 | L137: =SUMPRODUCT((Data!$B$17:$B$19=Model!$F137)*(Data!$C$16:$K$16=Model!$K137)*(Data!$C$17:$K$19)) -> 3.78 | M137: 79.76 | N137: =_xlfn.IFS(M137>70,"Serviceable",M137>30, "Limited Life",M137<=30, "Unserviceable") -> Serviceable
B138: 159 | C138: 1956 | D138: Wood Untreated Round | E138: Serviceable | F138: Class 1 | G138: 2017 | H138: 110 | I138: 103.91 | J138: 8 | K138: =INDEX(Lists!$B$32:$B$40, MATCH(2020-C138, Lists!$C$32:$C$40,1)) -> 61-70 | L138: =SUMPRODUCT((Data!$B$17:$B$19=Model!$F138)*(Data!$C$16:$K$16=Model!$K138)*(Data!$C$17:$K$19)) -> 2.03 | M138: 93.76 | N138: =_xlfn.IFS(M138>70,"Serviceable",M138>30, "Limited Life",M138<=30, "Unserviceable") -> Serviceable
B139: 160 | C139: 1980 | D139: Wood Untreated Dressed | E139: Serviceable | F139: Class 1 | G139: 2017 | H139: 130 | I139: 122.44 | J139: 8 | K139: =INDEX(Lists!$B$32:$B$40, MATCH(2020-C139, Lists!$C$32:$C$40,1)) -> 31-40 | L139: =SUMPRODUCT((Data!$B$17:$B$19=Model!$F139)*(Data!$C$16:$K$16=Model!$K139)*(Data!$C$17:$K$19)) -> 2.52 | M139: 109.84 | N139: =_xlfn.IFS(M139>70,"Serviceable",M139>30, "Limited Life",M139<=30, "Unserviceable") -> Serviceable
B140: 162 | C140: 1966 | D140: Wood Creos Impregnated | E140: Serviceable | F140: Class 3 | G140: 2017 | H140: 80 | I140: 71.81 | J140: 8 | K140: =INDEX(Lists!$B$32:$B$40, MATCH(2020-C140, Lists!$C$32:$C$40,1)) -> 51-60 | L140: =SUMPRODUCT((Data!$B$17:$B$19=Model!$F140)*(Data!$C$16:$K$16=Model!$K140)*(Data!$C$17:$K$19)) -> 2.73 | M140: 58.16 | N140: =_xlfn.IFS(M140>70,"Serviceable",M140>30, "Limited Life",M140<=30, "Unserviceable") -> Limited Life
B141: 163 | C141: 1964 | D141: Wood Creos Impregnated | E141: Serviceable | F141: Class 3 | G141: 2017 | H141: 110 | I141: 101.81 | J141: 8 | K141: =INDEX(Lists!$B$32:$B$40, MATCH(2020-C141, Lists!$C$32:$C$40,1)) -> 51-60 | L141: =SUMPRODUCT((Data!$B$17:$B$19=Model!$F141)*(Data!$C$16:$K$16=Model!$K141)*(Data!$C$17:$K$19)) -> 2.73 | M141: 88.16 | N141: =_xlfn.IFS(M141>70,"Serviceable",M141>30, "Limited Life",M141<=30, "Unserviceable") -> Serviceable
B142: 164 | C142: 1966 | D142: Wood Creos Impregnated | E142: Serviceable | F142: Class 3 | G142: 2017 | H142: 110 | I142: 101.81 | J142: 8 | K142: =INDEX(Lists!$B$32:$B$40, MATCH(2020-C142, Lists!$C$32:$C$40,1)) -> 51-60 | L142: =SUMPRODUCT((Data!$B$17:$B$19=Model!$F142)*(Data!$C$16:$K$16=Model!$K142)*(Data!$C$17:$K$19)) -> 2.73 | M142: 88.16 | N142: =_xlfn.IFS(M142>70,"Serviceable",M142>30, "Limited Life",M142<=30, "Unserviceable") -> Serviceable
B143: 165 | C143: 1967 | D143: Wood Creos Impregnated | E143: Serviceable | F143: Class 3 | G143: 2017 | H143: 100 | I143: 91.81 | J143: 8 | K143: =INDEX(Lists!$B$32:$B$40, MATCH(2020-C143, Lists!$C$32:$C$40,1)) -> 51-60 | L143: =SUMPRODUCT((Data!$B$17:$B$19=Model!$F143)*(Data!$C$16:$K$16=Model!$K143)*(Data!$C$17:$K$19)) -> 2.73 | M143: 78.16 | N143: =_xlfn.IFS(M143>70,"Serviceable",M143>30, "Limited Life",M143<=30, "Unserviceable") -> Serviceable
B144: 166 | C144: 1980 | D144: Wood Untreated Dressed | E144: Serviceable | F144: Class 1 | G144: 2017 | H144: 130 | I144: 122.44 | J144: 8 | K144: =INDEX(Lists!$B$32:$B$40, MATCH(2020-C144, Lists!$C$32:$C$40,1)) -> 31-40 | L144: =SUMPRODUCT((Data!$B$17:$B$19=Model!$F144)*(Data!$C$16:$K$16=Model!$K144)*(Data!$C$17:$K$19)) -> 2.52 | M144: 109.84 | N144: =_xlfn.IFS(M144>70,"Serviceable",M144>30, "Limited Life",M144<=30, "Unserviceable") -> Serviceable
B145: 168 | C145: 1976 | D145: Wood Creos Impregnated | E145: Limited Life | F145: Class 3 | G145: 2017 | H145: 80 | I145: 68.66 | J145: 8 | K145: =INDEX(Lists!$B$32:$B$40, MATCH(2020-C145, Lists!$C$32:$C$40,1)) -> 41-50 | L145: =SUMPRODUCT((Data!$B$17:$B$19=Model!$F145)*(Data!$C$16:$K$16=Model!$K145)*(Data!$C$17:$K$19)) -> 3.78 | M145: 49.76 | N145: =_xlfn.IFS(M145>70,"Serviceable",M145>30, "Limited Life",M145<=30, "Unserviceable") -> Limited Life
B146: 169 | C146: 1972 | D146: Wood Creos Impregnated | E146: Serviceable | F146: Class 3 | G146: 2017 | H146: 90 | I146: 78.66 | J146: 8 | K146: =INDEX(Lists!$B$32:$B$40, MATCH(2020-C146, Lists!$C$32:$C$40,1)) -> 41-50 | L146: =SUMPRODUCT((Data!$B$17:$B$19=Model!$F146)*(Data!$C$16:$K$16=Model!$K146)*(Data!$C$17:$K$19)) -> 3.78 | M146: 59.76 | N146: =_xlfn.IFS(M146>70,"Serviceable",M146>30, "Limited Life",M146<=30, "Unserviceable") -> Limited Life
B147: 170 | C147: 1972 | D147: Wood Creos Impregnated | E147: Serviceable | F147: Class 3 | G147: 2017 | H147: 110 | I147: 98.66 | J147: 8 | K147: =INDEX(Lists!$B$32:$B$40, MATCH(2020-C147, Lists!$C$32:$C$40,1)) -> 41-50 | L147: =SUMPRODUCT((Data!$B$17:$B$19=Model!$F147)*(Data!$C$16:$K$16=Model!$K147)*(Data!$C$17:$K$19)) -> 3.78 | M147: 79.76 | N147: =_xlfn.IFS(M147>70,"Serviceable",M147>30, "Limited Life",M147<=30, "Unserviceable") -> Serviceable
B148: 171 | C148: 1964 | D148: Wood Creos Impregnated | E148: Serviceable | F148: Class 3 | G148: 2017 | H148: 110 | I148: 101.81 | J148: 8 | K148: =INDEX(Lists!$B$32:$B$40, MATCH(2020-C148, Lists!$C$32:$C$40,1)) -> 51-60 | L148: =SUMPRODUCT((Data!$B$17:$B$19=Model!$F148)*(Data!$C$16:$K$16=Model!$K148)*(Data!$C$17:$K$19)) -> 2.73 | M148: 88.16 | N148: =_xlfn.IFS(M148>70,"Serviceable",M148>30, "Limited Life",M148<=30, "Unserviceable") -> Serviceable
B149: 173 | C149: 1979 | D149: Wood Untreated Dressed | E149: Serviceable | F149: Class 1 | G149: 2017 | H149: 110 | I149: 104.75 | J149: 8 | K149: =INDEX(Lists!$B$32:$B$40, MATCH(2020-C149, Lists!$C$32:$C$40,1)) -> 41-50 | L149: =SUMPRODUCT((Data!$B$17:$B$19=Model!$F149)*(Data!$C$16:$K$16=Model!$K149)*(Data!$C$17:$K$19)) -> 1.75 | M149: 96 | N149: =_xlfn.IFS(M149>70,"Serviceable",M149>30, "Limited Life",M149<=30, "Unserviceable") -> Serviceable
B150: 174 | C150: 1965 | D150: Wood Creos Impregnated | E150: Serviceable | F150: Class 3 | G150: 2017 | H150: 110 | I150: 101.81 | J150: 8 | K150: =INDEX(Lists!$B$32:$B$40, MATCH(2020-C150, Lists!$C$32:$C$40,1)) -> 51-60 | L150: =SUMPRODUCT((Data!$B$17:$B$19=Model!$F150)*(Data!$C$16:$K$16=Model!$K150)*(Data!$C$17:$K$19)) -> 2.73 | M150: 88.16 | N150: =_xlfn.IFS(M150>70,"Serviceable",M150>30, "Limited Life",M150<=30, "Unserviceable") -> Serviceable
B151: 175 | C151: 1975 | D151: Wood Creos Impregnated | E151: Serviceable | F151: Class 1 | G151: 2017 | H151: 110 | I151: 104.75 | J151: 8 | K151: =INDEX(Lists!$B$32:$B$40, MATCH(2020-C151, Lists!$C$32:$C$40,1)) -> 41-50 | L151: =SUMPRODUCT((Data!$B$17:$B$19=Model!$F151)*(Data!$C$16:$K$16=Model!$K151)*(Data!$C$17:$K$19)) -> 1.75 | M151: 96 | N151: =_xlfn.IFS(M151>70,"Serviceable",M151>30, "Limited Life",M151<=30, "Unserviceable") -> Serviceable
B152: 176 | C152: 1997 | D152: CCA Treated Pole | E152: Serviceable | F152: Class 1 | G152: 2017 | H152: 120 | I152: 114.12 | J152: 8 | K152: =INDEX(Lists!$B$32:$B$40, MATCH(2020-C152, Lists!$C$32:$C$40,1)) -> 21-30 | L152: =SUMPRODUCT((Data!$B$17:$B$19=Model!$F152)*(Data!$C$16:$K$16=Model!$K152)*(Data!$C$17:$K$19)) -> 1.96 | M152: 104.32 | N152: =_xlfn.IFS(M152>70,"Serviceable",M152>30, "Limited Life",M152<=30, "Unserviceable") -> Serviceable
B153: 181 | C153: 1971 | D153: Wood Creos Impregnated | E153: Serviceable | F153: Class 3 | G153: 2017 | H153: 100 | I153: 88.66 | J153: 8 | K153: =INDEX(Lists!$B$32:$B$40, MATCH(2020-C153, Lists!$C$32:$C$40,1)) -> 41-50 | L153: =SUMPRODUCT((Data!$B$17:$B$19=Model!$F153)*(Data!$C$16:$K$16=Model!$K153)*(Data!$C$17:$K$19)) -> 3.78 | M153: 69.76 | N153: =_xlfn.IFS(M153>70,"Serviceable",M153>30, "Limited Life",M153<=30, "Unserviceable") -> Limited Life
B154: 184 | C154: 1967 | D154: Wood Creos Impregnated | E154: Serviceable | F154: Class 3 | G154: 2017 | H154: 80 | I154: 71.81 | J154: 8 | K154: =INDEX(Lists!$B$32:$B$40, MATCH(2020-C154, Lists!$C$32:$C$40,1)) -> 51-60 | L154: =SUMPRODUCT((Data!$B$17:$B$19=Model!$F154)*(Data!$C$16:$K$16=Model!$K154)*(Data!$C$17:$K$19)) -> 2.73 | M154: 58.16 | N154: =_xlfn.IFS(M154>70,"Serviceable",M154>30, "Limited Life",M154<=30, "Unserviceable") -> Limited Life
B155: 185 | C155: 1973 | D155: Wood Untreated Dressed | E155: Serviceable | F155: Class 1 | G155: 2017 | H155: 120 | I155: 114.75 | J155: 8 | K155: =INDEX(Lists!$B$32:$B$40, MATCH(2020-C155, Lists!$C$32:$C$40,1)) -> 41-50 | L155: =SUMPRODUCT((Data!$B$17:$B$19=Model!$F155)*(Data!$C$16:$K$16=Model!$K155)*(Data!$C$17:$K$19)) -> 1.75 | M155: 106 | N155: =_xlfn.IFS(M155>70,"Serviceable",M155>30, "Limited Life",M155<=30, "Unserviceable") -> Serviceable
B156: 186 | C156: 1995 | D156: Wood Untreated Dressed | E156: Serviceable | F156: Class 1 | G156: 2017 | H156: 150 | I156: 144.12 | J156: 8 | K156: =INDEX(Lists!$B$32:$B$40, MATCH(2020-C156, Lists!$C$32:$C$40,1)) -> 21-30 | L156: =SUMPRODUCT((Data!$B$17:$B$19=Model!$F156)*(Data!$C$16:$K$16=Model!$K156)*(Data!$C$17:$K$19)) -> 1.96 | M156: 134.32 | N156: =_xlfn.IFS(M156>70,"Serviceable",M156>30, "Limited Life",M156<=30, "Unserviceable") -> Serviceable
B157: 187 | C157: 1967 | D157: Wood Creos Impregnated | E157: Serviceable | F157: Class 3 | G157: 2017 | H157: 110 | I157: 101.81 | J157: 8 | K157: =INDEX(Lists!$B$32:$B$40, MATCH(2020-C157, Lists!$C$32:$C$40,1)) -> 51-60 | L157: =SUMPRODUCT((Data!$B$17:$B$19=Model!$F157)*(Data!$C$16:$K$16=Model!$K157)*(Data!$C$17:$K$19)) -> 2.73 | M157: 88.16 | N157: =_xlfn.IFS(M157>70,"Serviceable",M157>30, "Limited Life",M157<=30, "Unserviceable") -> Serviceable
B158: 188 | C158: 1986 | D158: Wood Untreated Dressed | E158: Serviceable | F158: Class 1 | G158: 2017 | H158: 130 | I158: 122.44 | J158: 8 | K158: =INDEX(Lists!$B$32:$B$40, MATCH(2020-C158, Lists!$C$32:$C$40,1)) -> 31-40 | L158: =SUMPRODUCT((Data!$B$17:$B$19=Model!$F158)*(Data!$C$16:$K$16=Model!$K158)*(Data!$C$17:$K$19)) -> 2.52 | M158: 109.84 | N158: =_xlfn.IFS(M158>70,"Serviceable",M158>30, "Limited Life",M158<=30, "Unserviceable") -> Serviceable
B159: 189 | C159: 1967 | D159: Wood Creos Impregnated | E159: Serviceable | F159: Class 3 | G159: 2017 | H159: 100 | I159: 91.81 | J159: 8 | K159: =INDEX(Lists!$B$32:$B$40, MATCH(2020-C159, Lists!$C$32:$C$40,1)) -> 51-60 | L159: =SUMPRODUCT((Data!$B$17:$B$19=Model!$F159)*(Data!$C$16:$K$16=Model!$K159)*(Data!$C$17:$K$19)) -> 2.73 | M159: 78.16 | N159: =_xlfn.IFS(M159>70,"Serviceable",M159>30, "Limited Life",M159<=30, "Unserviceable") -> Serviceable
B160: 191 | C160: 1986 | D160: Wood Untreated Dressed | E160: Serviceable | F160: Class 1 | G160: 2018 | H160: 90 | I160: 84.96 | J160: 7 | K160: =INDEX(Lists!$B$32:$B$40, MATCH(2020-C160, Lists!$C$32:$C$40,1)) -> 31-40 | L160: =SUMPRODUCT((Data!$B$17:$B$19=Model!$F160)*(Data!$C$16:$K$16=Model!$K160)*(Data!$C$17:$K$19)) -> 2.52 | M160: 72.36 | N160: =_xlfn.IFS(M160>70,"Serviceable",M160>30, "Limited Life",M160<=30, "Unserviceable") -> Serviceable
B161: 192 | C161: 1974 | D161: Wood Creos Impregnated | E161: Serviceable | F161: Class 1 | G161: 2017 | H161: 100 | I161: 94.75 | J161: 8 | K161: =INDEX(Lists!$B$32:$B$40, MATCH(2020-C161, Lists!$C$32:$C$40,1)) -> 41-50 | L161: =SUMPRODUCT((Data!$B$17:$B$19=Model!$F161)*(Data!$C$16:$K$16=Model!$K161)*(Data!$C$17:$K$19)) -> 1.75 | M161: 86 | N161: =_xlfn.IFS(M161>70,"Serviceable",M161>30, "Limited Life",M161<=30, "Unserviceable") -> Serviceable
B162: 193 | C162: 1967 | D162: Wood Creos Impregnated | E162: Serviceable | F162: Class 3 | G162: 2017 | H162: 100 | I162: 91.81 | J162: 8 | K162: =INDEX(Lists!$B$32:$B$40, MATCH(2020-C162, Lists!$C$32:$C$40,1)) -> 51-60 | L162: =SUMPRODUCT((Data!$B$17:$B$19=Model!$F162)*(Data!$C$16:$K$16=Model!$K162)*(Data!$C$17:$K$19)) -> 2.73 | M162: 78.16 | N162: =_xlfn.IFS(M162>70,"Serviceable",M162>30, "Limited Life",M162<=30, "Unserviceable") -> Serviceable
B163: 195 | C163: 1971 | D163: Wood Creos Impregnated | E163: Limited Life | F163: Class 3 | G163: 2017 | H163: 80 | I163: 68.66 | J163: 8 | K163: =INDEX(Lists!$B$32:$B$40, MATCH(2020-C163, Lists!$C$32:$C$40,1)) -> 41-50 | L163: =SUMPRODUCT((Data!$B$17:$B$19=Model!$F163)*(Data!$C$16:$K$16=Model!$K163)*(Data!$C$17:$K$19)) -> 3.78 | M163: 49.76 | N163: =_xlfn.IFS(M163>70,"Serviceable",M163>30, "Limited Life",M163<=30, "Unserviceable") -> Limited Life
B164: 197 | C164: 1971 | D164: Wood Creos Impregnated | E164: Serviceable | F164: Class 3 | G164: 2017 | H164: 100 | I164: 88.66 | J164: 8 | K164: =INDEX(Lists!$B$32:$B$40, MATCH(2020-C164, Lists!$C$32:$C$40,1)) -> 41-50 | L164: =SUMPRODUCT((Data!$B$17:$B$19=Model!$F164)*(Data!$C$16:$K$16=Model!$K164)*(Data!$C$17:$K$19)) -> 3.78 | M164: 69.76 | N164: =_xlfn.IFS(M164>70,"Serviceable",M164>30, "Limited Life",M164<=30, "Unserviceable") -> Limited Life
B165: 198 | C165: 1980 | D165: Wood Untreated Dressed | E165: Serviceable | F165: Class 1 | G165: 2017 | H165: 120 | I165: 112.44 | J165: 8 | K165: =INDEX(Lists!$B$32:$B$40, MATCH(2020-C165, Lists!$C$32:$C$40,1)) -> 31-40 | L165: =SUMPRODUCT((Data!$B$17:$B$19=Model!$F165)*(Data!$C$16:$K$16=Model!$K165)*(Data!$C$17:$K$19)) -> 2.52 | M165: 99.84 | N165: =_xlfn.IFS(M165>70,"Serviceable",M165>30, "Limited Life",M165<=30, "Unserviceable") -> Serviceable
B166: 199 | C166: 1966 | D166: Wood Creos Impregnated | E166: Serviceable | F166: Class 3 | G166: 2017 | H166: 100 | I166: 91.81 | J166: 8 | K166: =INDEX(Lists!$B$32:$B$40, MATCH(2020-C166, Lists!$C$32:$C$40,1)) -> 51-60 | L166: =SUMPRODUCT((Data!$B$17:$B$19=Model!$F166)*(Data!$C$16:$K$16=Model!$K166)*(Data!$C$17:$K$19)) -> 2.73 | M166: 78.16 | N166: =_xlfn.IFS(M166>70,"Serviceable",M166>30, "Limited Life",M166<=30, "Unserviceable") -> Serviceable
B167: 200 | C167: 1981 | D167: Wood Untreated Dressed | E167: Serviceable | F167: Class 1 | G167: 2017 | H167: 110 | I167: 102.44 | J167: 8 | K167: =INDEX(Lists!$B$32:$B$40, MATCH(2020-C167, Lists!$C$32:$C$40,1)) -> 31-40 | L167: =SUMPRODUCT((Data!$B$17:$B$19=Model!$F167)*(Data!$C$16:$K$16=Model!$K167)*(Data!$C$17:$K$19)) -> 2.52 | M167: 89.84 | N167: =_xlfn.IFS(M167>70,"Serviceable",M167>30, "Limited Life",M167<=30, "Unserviceable") -> Serviceable
B168: 202 | C168: 1971 | D168: Wood Creos Impregnated | E168: Serviceable | F168: Class 3 | G168: 2018 | H168: 100 | I168: 92.44 | J168: 7 | K168: =INDEX(Lists!$B$32:$B$40, MATCH(2020-C168, Lists!$C$32:$C$40,1)) -> 41-50 | L168: =SUMPRODUCT((Data!$B$17:$B$19=Model!$F168)*(Data!$C$16:$K$16=Model!$K168)*(Data!$C$17:$K$19)) -> 3.78 | M168: 73.54 | N168: =_xlfn.IFS(M168>70,"Serviceable",M168>30, "Limited Life",M168<=30, "Unserviceable") -> Serviceable
B169: 203 | C169: 1984 | D169: Wood Untreated Dressed | E169: Serviceable | F169: Class 1 | G169: 2018 | H169: 150 | I169: 144.96 | J169: 7 | K169: =INDEX(Lists!$B$32:$B$40, MATCH(2020-C169, Lists!$C$32:$C$40,1)) -> 31-40 | L169: =SUMPRODUCT((Data!$B$17:$B$19=Model!$F169)*(Data!$C$16:$K$16=Model!$K169)*(Data!$C$17:$K$19)) -> 2.52 | M169: 132.36 | N169: =_xlfn.IFS(M169>70,"Serviceable",M169>30, "Limited Life",M169<=30, "Unserviceable") -> Serviceable
B170: 204 | C170: 1999 | D170: Wood Untreated Round | E170: Serviceable | F170: Class 1 | G170: 2018 | H170: 120 | I170: 116.08 | J170: 7 | K170: =INDEX(Lists!$B$32:$B$40, MATCH(2020-C170, Lists!$C$32:$C$40,1)) -> 21-30 | L170: =SUMPRODUCT((Data!$B$17:$B$19=Model!$F170)*(Data!$C$16:$K$16=Model!$K170)*(Data!$C$17:$K$19)) -> 1.96 | M170: 106.28 | N170: =_xlfn.IFS(M170>70,"Serviceable",M170>30, "Limited Life",M170<=30, "Unserviceable") -> Serviceable
B171: 206 | C171: 1977 | D171: Wood Untreated Dressed | E171: Serviceable | F171: Class 1 | G171: 2017 | H171: 100 | I171: 94.75 | J171: 8 | K171: =INDEX(Lists!$B$32:$B$40, MATCH(2020-C171, Lists!$C$32:$C$40,1)) -> 41-50 | L171: =SUMPRODUCT((Data!$B$17:$B$19=Model!$F171)*(Data!$C$16:$K$16=Model!$K171)*(Data!$C$17:$K$19)) -> 1.75 | M171: 86 | N171: =_xlfn.IFS(M171>70,"Serviceable",M171>30, "Limited Life",M171<=30, "Unserviceable") -> Serviceable
B172: 208 | C172: 1962 | D172: Wood Creos Impregnated | E172: Serviceable | F172: Class 3 | G172: 2017 | H172: 110 | I172: 101.81 | J172: 8 | K172: =INDEX(Lists!$B$32:$B$40, MATCH(2020-C172, Lists!$C$32:$C$40,1)) -> 51-60 | L172: =SUMPRODUCT((Data!$B$17:$B$19=Model!$F172)*(Data!$C$16:$K$16=Model!$K172)*(Data!$C$17:$K$19)) -> 2.73 | M172: 88.16 | N172: =_xlfn.IFS(M172>70,"Serviceable",M172>30, "Limited Life",M172<=30, "Unserviceable") -> Serviceable
B173: 210 | C173: 1967 | D173: Wood Creos Impregnated | E173: Serviceable | F173: Class 3 | G173: 2017 | H173: 90 | I173: 81.81 | J173: 8 | K173: =INDEX(Lists!$B$32:$B$40, MATCH(2020-C173, Lists!$C$32:$C$40,1)) -> 51-60 | L173: =SUMPRODUCT((Data!$B$17:$B$19=Model!$F173)*(Data!$C$16:$K$16=Model!$K173)*(Data!$C$17:$K$19)) -> 2.73 | M173: 68.16 | N173: =_xlfn.IFS(M173>70,"Serviceable",M173>30, "Limited Life",M173<=30, "Unserviceable") -> Limited Life
B174: 211 | C174: 1963 | D174: Wood Creos Impregnated | E174: Serviceable | F174: Class 3 | G174: 2017 | H174: 80 | I174: 71.81 | J174: 8 | K174: =INDEX(Lists!$B$32:$B$40, MATCH(2020-C174, Lists!$C$32:$C$40,1)) -> 51-60 | L174: =SUMPRODUCT((Data!$B$17:$B$19=Model!$F174)*(Data!$C$16:$K$16=Model!$K174)*(Data!$C$17:$K$19)) -> 2.73 | M174: 58.16 | N174: =_xlfn.IFS(M174>70,"Serviceable",M174>30, "Limited Life",M174<=30, "Unserviceable") -> Limited Life
B175: 212 | C175: 1967 | D175: Wood Creos Impregnated | E175: Serviceable | F175: Class 3 | G175: 2017 | H175: 110 | I175: 101.81 | J175: 8 | K175: =INDEX(Lists!$B$32:$B$40, MATCH(2020-C175, Lists!$C$32:$C$40,1)) -> 51-60 | L175: =SUMPRODUCT((Data!$B$17:$B$19=Model!$F175)*(Data!$C$16:$K$16=Model!$K175)*(Data!$C$17:$K$19)) -> 2.73 | M175: 88.16 | N175: =_xlfn.IFS(M175>70,"Serviceable",M175>30, "Limited Life",M175<=30, "Unserviceable") -> Serviceable
B176: 213 | C176: 1963 | D176: Wood Creos Impregnated | E176: Serviceable | F176: Class 3 | G176: 2017 | H176: 110 | I176: 101.81 | J176: 8 | K176: =INDEX(Lists!$B$32:$B$40, MATCH(2020-C176, Lists!$C$32:$C$40,1)) -> 51-60 | L176: =SUMPRODUCT((Data!$B$17:$B$19=Model!$F176)*(Data!$C$16:$K$16=Model!$K176)*(Data!$C$17:$K$19)) -> 2.73 | M176: 88.16 | N176: =_xlfn.IFS(M176>70,"Serviceable",M176>30, "Limited Life",M176<=30, "Unserviceable") -> Serviceable
B177: 214 | C177: 1964 | D177: Wood Creos Impregnated | E177: Serviceable | F177: Class 3 | G177: 2017 | H177: 90 | I177: 81.81 | J177: 8 | K177: =INDEX(Lists!$B$32:$B$40, MATCH(2020-C177, Lists!$C$32:$C$40,1)) -> 51-60 | L177: =SUMPRODUCT((Data!$B$17:$B$19=Model!$F177)*(Data!$C$16:$K$16=Model!$K177)*(Data!$C$17:$K$19)) -> 2.73 | M177: 68.16 | N177: =_xlfn.IFS(M177>70,"Serviceable",M177>30, "Limited Life",M177<=30, "Unserviceable") -> Limited Life
B178: 216 | C178: 1934 | D178: Wood Untreated Dressed | E178: Serviceable | F178: Class 1 | G178: 2017 | H178: 100 | I178: 91.57 | J178: 8 | K178: =INDEX(Lists!$B$32:$B$40, MATCH(2020-C178, Lists!$C$32:$C$40,1)) -> 81-90 | L178: =SUMPRODUCT((Data!$B$17:$B$19=Model!$F178)*(Data!$C$16:$K$16=Model!$K178)*(Data!$C$17:$K$19)) -> 2.81 | M178: 77.52 | N178: =_xlfn.IFS(M178>70,"Serviceable",M178>30, "Limited Life",M178<=30, "Unserviceable") -> Serviceable
B179: 217 | C179: 1987 | D179: Wood Untreated Dressed | E179: Serviceable | F179: Class 1 | G179: 2017 | H179: 130 | I179: 122.44 | J179: 8 | K179: =INDEX(Lists!$B$32:$B$40, MATCH(2020-C179, Lists!$C$32:$C$40,1)) -> 31-40 | L179: =SUMPRODUCT((Data!$B$17:$B$19=Model!$F179)*(Data!$C$16:$K$16=Model!$K179)*(Data!$C$17:$K$19)) -> 2.52 | M179: 109.84 | N179: =_xlfn.IFS(M179>70,"Serviceable",M179>30, "Limited Life",M179<=30, "Unserviceable") -> Serviceable
B180: 218 | C180: 1967 | D180: Wood Creos Impregnated | E180: Serviceable | F180: Class 3 | G180: 2017 | H180: 100 | I180: 91.81 | J180: 8 | K180: =INDEX(Lists!$B$32:$B$40, MATCH(2020-C180, Lists!$C$32:$C$40,1)) -> 51-60 | L180: =SUMPRODUCT((Data!$B$17:$B$19=Model!$F180)*(Data!$C$16:$K$16=Model!$K180)*(Data!$C$17:$K$19)) -> 2.73 | M180: 78.16 | N180: =_xlfn.IFS(M180>70,"Serviceable",M180>30, "Limited Life",M180<=30, "Unserviceable") -> Serviceable
B181: 219 | C181: 1967 | D181: Wood Creos Impregnated | E181: Serviceable | F181: Class 3 | G181: 2017 | H181: 90 | I181: 81.81 | J181: 8 | K181: =INDEX(Lists!$B$32:$B$40, MATCH(2020-C181, Lists!$C$32:$C$40,1)) -> 51-60 | L181: =SUMPRODUCT((Data!$B$17:$B$19=Model!$F181)*(Data!$C$16:$K$16=Model!$K181)*(Data!$C$17:$K$19)) -> 2.73 | M181: 68.16 | N181: =_xlfn.IFS(M181>70,"Serviceable",M181>30, "Limited Life",M181<=30, "Unserviceable") -> Limited Life
B182: 220 | C182: 1981 | D182: Wood Untreated Dressed | E182: Serviceable | F182: Class 1 | G182: 2017 | H182: 90 | I182: 82.44 | J182: 8 | K182: =INDEX(Lists!$B$32:$B$40, MATCH(2020-C182, Lists!$C$32:$C$40,1)) -> 31-40 | L182: =SUMPRODUCT((Data!$B$17:$B$19=Model!$F182)*(Data!$C$16:$K$16=Model!$K182)*(Data!$C$17:$K$19)) -> 2.52 | M182: 69.84 | N182: =_xlfn.IFS(M182>70,"Serviceable",M182>30, "Limited Life",M182<=30, "Unserviceable") -> Limited Life
B183: 223 | C183: 1969 | D183: Wood Creos Impregnated | E183: Serviceable | F183: Class 3 | G183: 2017 | H183: 100 | I183: 91.81 | J183: 8 | K183: =INDEX(Lists!$B$32:$B$40, MATCH(2020-C183, Lists!$C$32:$C$40,1)) -> 51-60 | L183: =SUMPRODUCT((Data!$B$17:$B$19=Model!$F183)*(Data!$C$16:$K$16=Model!$K183)*(Data!$C$17:$K$19)) -> 2.73 | M183: 78.16 | N183: =_xlfn.IFS(M183>70,"Serviceable",M183>30, "Limited Life",M183<=30, "Unserviceable") -> Serviceable
B184: 224 | C184: 1969 | D184: Wood Creos Impregnated | E184: Serviceable | F184: Class 3 | G184: 2017 | H184: 90 | I184: 81.81 | J184: 8 | K184: =INDEX(Lists!$B$32:$B$40, MATCH(2020-C184, Lists!$C$32:$C$40,1)) -> 51-60 | L184: =SUMPRODUCT((Data!$B$17:$B$19=Model!$F184)*(Data!$C$16:$K$16=Model!$K184)*(Data!$C$17:$K$19)) -> 2.73 | M184: 68.16 | N184: =_xlfn.IFS(M184>70,"Serviceable",M184>30, "Limited Life",M184<=30, "Unserviceable") -> Limited Life
B185: 225 | C185: 1969 | D185: Wood Creos Impregnated | E185: Serviceable | F185: Class 3 | G185: 2017 | H185: 100 | I185: 91.81 | J185: 8 | K185: =INDEX(Lists!$B$32:$B$40, MATCH(2020-C185, Lists!$C$32:$C$40,1)) -> 51-60 | L185: =SUMPRODUCT((Data!$B$17:$B$19=Model!$F185)*(Data!$C$16:$K$16=Model!$K185)*(Data!$C$17:$K$19)) -> 2.73 | M185: 78.16 | N185: =_xlfn.IFS(M185>70,"Serviceable",M185>30, "Limited Life",M185<=30, "Unserviceable") -> Serviceable
B186: 226 | C186: 2003 | D186: CCA Treated Pole | E186: Serviceable | F186: Class 2 | G186: 2017 | H186: 160 | I186: 156.34 | J186: 8 | K186: =INDEX(Lists!$B$32:$B$40, MATCH(2020-C186, Lists!$C$32:$C$40,1)) -> 0-20 | L186: =SUMPRODUCT((Data!$B$17:$B$19=Model!$F186)*(Data!$C$16:$K$16=Model!$K186)*(Data!$C$17:$K$19)) -> 1.22 | M186: 150.24 | N186: =_xlfn.IFS(M186>70,"Serviceable",M186>30, "Limited Life",M186<=30, "Unserviceable") -> Serviceable
B187: 227 | C187: 2006 | D187: CCA Treated Pole | E187: Serviceable | F187: Class 1 | G187: 2017 | H187: 160 | I187: 156.82 | J187: 8 | K187: =INDEX(Lists!$B$32:$B$40, MATCH(2020-C187, Lists!$C$32:$C$40,1)) -> 0-20 | L187: =SUMPRODUCT((Data!$B$17:$B$19=Model!$F187)*(Data!$C$16:$K$16=Model!$K187)*(Data!$C$17:$K$19)) -> 1.06 | M187: 151.52 | N187: =_xlfn.IFS(M187>70,"Serviceable",M187>30, "Limited Life",M187<=30, "Unserviceable") -> Serviceable
B188: 228 | C188: 1979 | D188: Wood Creos Impregnated | E188: Serviceable | F188: Class 3 | G188: 2017 | H188: 110 | I188: 98.66 | J188: 8 | K188: =INDEX(Lists!$B$32:$B$40, MATCH(2020-C188, Lists!$C$32:$C$40,1)) -> 41-50 | L188: =SUMPRODUCT((Data!$B$17:$B$19=Model!$F188)*(Data!$C$16:$K$16=Model!$K188)*(Data!$C$17:$K$19)) -> 3.78 | M188: 79.76 | N188: =_xlfn.IFS(M188>70,"Serviceable",M188>30, "Limited Life",M188<=30, "Unserviceable") -> Serviceable
B189: 229 | C189: 1979 | D189: Wood Untreated Dressed | E189: Serviceable | F189: Class 1 | G189: 2017 | H189: 100 | I189: 94.75 | J189: 8 | K189: =INDEX(Lists!$B$32:$B$40, MATCH(2020-C189, Lists!$C$32:$C$40,1)) -> 41-50 | L189: =SUMPRODUCT((Data!$B$17:$B$19=Model!$F189)*(Data!$C$16:$K$16=Model!$K189)*(Data!$C$17:$K$19)) -> 1.75 | M189: 86 | N189: =_xlfn.IFS(M189>70,"Serviceable",M189>30, "Limited Life",M189<=30, "Unserviceable") -> Serviceable
B190: 231 | C190: 1979 | D190: Wood Creos Impregnated | E190: Serviceable | F190: Class 3 | G190: 2017 | H190: 100 | I190: 88.66 | J190: 8 | K190: =INDEX(Lists!$B$32:$B$40, MATCH(2020-C190, Lists!$C$32:$C$40,1)) -> 41-50 | L190: =SUMPRODUCT((Data!$B$17:$B$19=Model!$F190)*(Data!$C$16:$K$16=Model!$K190)*(Data!$C$17:$K$19)) -> 3.78 | M190: 69.76 | N190: =_xlfn.IFS(M190>70,"Serviceable",M190>30, "Limited Life",M190<=30, "Unserviceable") -> Limited Life
B191: 233 | C191: 2002 | D191: CCA Treated Pole | E191: Serviceable | F191: Class 1 | G191: 2017 | H191: 140 | I191: 136.82 | J191: 8 | K191: =INDEX(Lists!$B$32:$B$40, MATCH(2020-C191, Lists!$C$32:$C$40,1)) -> 0-20 | L191: =SUMPRODUCT((Data!$B$17:$B$19=Model!$F191)*(Data!$C$16:$K$16=Model!$K191)*(Data!$C$17:$K$19)) -> 1.06 | M191: 131.52 | N191: =_xlfn.IFS(M191>70,"Serviceable",M191>30, "Limited Life",M191<=30, "Unserviceable") -> Serviceable
B192: 234 | C192: 1985 | D192: Wood Untreated Dressed | E192: Serviceable | F192: Class 1 | G192: 2017 | H192: 110 | I192: 102.44 | J192: 8 | K192: =INDEX(Lists!$B$32:$B$40, MATCH(2020-C192, Lists!$C$32:$C$40,1)) -> 31-40 | L192: =SUMPRODUCT((Data!$B$17:$B$19=Model!$F192)*(Data!$C$16:$K$16=Model!$K192)*(Data!$C$17:$K$19)) -> 2.52 | M192: 89.84 | N192: =_xlfn.IFS(M192>70,"Serviceable",M192>30, "Limited Life",M192<=30, "Unserviceable") -> Serviceable
B193: 235 | C193: 1985 | D193: Wood Untreated Dressed | E193: Serviceable | F193: Class 1 | G193: 2017 | H193: 110 | I193: 102.44 | J193: 8 | K193: =INDEX(Lists!$B$32:$B$40, MATCH(2020-C193, Lists!$C$32:$C$40,1)) -> 31-40 | L193: =SUMPRODUCT((Data!$B$17:$B$19=Model!$F193)*(Data!$C$16:$K$16=Model!$K193)*(Data!$C$17:$K$19)) -> 2.52 | M193: 89.84 | N193: =_xlfn.IFS(M193>70,"Serviceable",M193>30, "Limited Life",M193<=30, "Unserviceable") -> Serviceable
B194: 236 | C194: 1971 | D194: Wood Creos Impregnated | E194: Serviceable | F194: Class 3 | G194: 2017 | H194: 90 | I194: 78.66 | J194: 8 | K194: =INDEX(Lists!$B$32:$B$40, MATCH(2020-C194, Lists!$C$32:$C$40,1)) -> 41-50 | L194: =SUMPRODUCT((Data!$B$17:$B$19=Model!$F194)*(Data!$C$16:$K$16=Model!$K194)*(Data!$C$17:$K$19)) -> 3.78 | M194: 59.76 | N194: =_xlfn.IFS(M194>70,"Serviceable",M194>30, "Limited Life",M194<=30, "Unserviceable") -> Limited Life
B195: 237 | C195: 1979 | D195: Wood Creos Impregnated | E195: Serviceable | F195: Class 3 | G195: 2017 | H195: 100 | I195: 88.66 | J195: 8 | K195: =INDEX(Lists!$B$32:$B$40, MATCH(2020-C195, Lists!$C$32:$C$40,1)) -> 41-50 | L195: =SUMPRODUCT((Data!$B$17:$B$19=Model!$F195)*(Data!$C$16:$K$16=Model!$K195)*(Data!$C$17:$K$19)) -> 3.78 | M195: 69.76 | N195: =_xlfn.IFS(M195>70,"Serviceable",M195>30, "Limited Life",M195<=30, "Unserviceable") -> Limited Life
B196: 238 | C196: 1962 | D196: Wood Creos Impregnated | E196: Serviceable | F196: Class 3 | G196: 2017 | H196: 100 | I196: 91.81 | J196: 8 | K196: =INDEX(Lists!$B$32:$B$40, MATCH(2020-C196, Lists!$C$32:$C$40,1)) -> 51-60 | L196: =SUMPRODUCT((Data!$B$17:$B$19=Model!$F196)*(Data!$C$16:$K$16=Model!$K196)*(Data!$C$17:$K$19)) -> 2.73 | M196: 78.16 | N196: =_xlfn.IFS(M196>70,"Serviceable",M196>30, "Limited Life",M196<=30, "Unserviceable") -> Serviceable
B197: 239 | C197: 1971 | D197: Wood Creos Impregnated | E197: Serviceable | F197: Class 3 | G197: 2017 | H197: 100 | I197: 88.66 | J197: 8 | K197: =INDEX(Lists!$B$32:$B$40, MATCH(2020-C197, Lists!$C$32:$C$40,1)) -> 41-50 | L197: =SUMPRODUCT((Data!$B$17:$B$19=Model!$F197)*(Data!$C$16:$K$16=Model!$K197)*(Data!$C$17:$K$19)) -> 3.78 | M197: 69.76 | N197: =_xlfn.IFS(M197>70,"Serviceable",M197>30, "Limited Life",M197<=30, "Unserviceable") -> Limited Life
B198: 240 | C198: 1959 | D198: Wood Creos Impregnated | E198: Serviceable | F198: Class 3 | G198: 2018 | H198: 110 | I198: 105.96 | J198: 7 | K198: =INDEX(Lists!$B$32:$B$40, MATCH(2020-C198, Lists!$C$32:$C$40,1)) -> 61-70 | L198: =SUMPRODUCT((Data!$B$17:$B$19=Model!$F198)*(Data!$C$16:$K$16=Model!$K198)*(Data!$C$17:$K$19)) -> 2.02 | M198: 95.86 | N198: =_xlfn.IFS(M198>70,"Serviceable",M198>30, "Limited Life",M198<=30, "Unserviceable") -> Serviceable
B199: 241 | C199: 1989 | D199: Wood Untreated Dressed | E199: Serviceable | F199: Class 1 | G199: 2018 | H199: 140 | I199: 134.96 | J199: 7 | K199: =INDEX(Lists!$B$32:$B$40, MATCH(2020-C199, Lists!$C$32:$C$40,1)) -> 31-40 | L199: =SUMPRODUCT((Data!$B$17:$B$19=Model!$F199)*(Data!$C$16:$K$16=Model!$K199)*(Data!$C$17:$K$19)) -> 2.52 | M199: 122.36 | N199: =_xlfn.IFS(M199>70,"Serviceable",M199>30, "Limited Life",M199<=30, "Unserviceable") -> Serviceable
B200: 242 | C200: 2003 | D200: CCA Treated Pole | E200: Serviceable | F200: Class 2 | G200: 2018 | H200: 150 | I200: 147.56 | J200: =2025-G200 -> 7 | K200: =INDEX(Lists!$B$32:$B$40, MATCH(2020-C200, Lists!$C$32:$C$40,1)) -> 0-20 | L200: =SUMPRODUCT((Data!$B$17:$B$19=Model!$F200)*(Data!$C$16:$K$16=Model!$K200)*(Data!$C$17:$K$19)) -> 1.22 | M200: =IF(IF(H200>=700,999,(H200-L200*J200))<0,0,IF(H200>=700,999,(H200-L200*J200))) -> 141.46 | N200: =_xlfn.IFS(M200>70,"Serviceable",M200>30, "Limited Life",M200<=30, "Unserviceable") -> Serviceable
B201: 243 | C201: 2003 | D201: CCA Treated Pole | E201: Serviceable | F201: Class 2 | G201: 2018 | H201: 150 | I201: 147.56 | J201: 7 | K201: =INDEX(Lists!$B$32:$B$40, MATCH(2020-C201, Lists!$C$32:$C$40,1)) -> 0-20 | L201: =SUMPRODUCT((Data!$B$17:$B$19=Model!$F201)*(Data!$C$16:$K$16=Model!$K201)*(Data!$C$17:$K$19)) -> 1.22 | M201: 141.46 | N201: =_xlfn.IFS(M201>70,"Serviceable",M201>30, "Limited Life",M201<=30, "Unserviceable") -> Serviceable
B202: 244 | C202: 1973 | D202: Wood Untreated Dressed | E202: Serviceable | F202: Class 1 | G202: 2018 | H202: 110 | I202: 106.5 | J202: 7 | K202: =INDEX(Lists!$B$32:$B$40, MATCH(2020-C202, Lists!$C$32:$C$40,1)) -> 41-50 | L202: =SUMPRODUCT((Data!$B$17:$B$19=Model!$F202)*(Data!$C$16:$K$16=Model!$K202)*(Data!$C$17:$K$19)) -> 1.75 | M202: 97.75 | N202: =_xlfn.IFS(M202>70,"Serviceable",M202>30, "Limited Life",M202<=30, "Unserviceable") -> Serviceable
... 4298 more rows

Sheet Data
A1: United Energy
A2: Data
B5: Forecast end year | C5: 2025
B6: Current year | C6: 2020
B10: Intervention ratio
B11: Serviceable | C11: 0
B12: Limited Life | C12: 0.694
B13: Unserviceable | C13: 1
B15: SWT annual reduction in mm
B16: Age group | C16: 0-20 | D16: 21-30 | E16: 31-40 | F16: 41-50 | G16: 51-60 | H16: 61-70 | I16: 71-80 | J16: 81-90 | K16: 90+ | L16: Ave
B17: =C24 -> Class 1 | C17: 1.06 | D17: 1.96 | E17: 2.52 | F17: 1.75 | G17: 1.65 | H17: 2.03 | I17: 2.15 | J17: 2.81 | K17: 2.09 | L17: 1.81
B18: =C30 -> Class 2 | C18: 1.22 | D18: 1.89 | E18: 2.33 | F18: 3.28 | G18: 2.57 | H18: 2.23 | I18: 3.53 | J18: 3.75 | K18: 2.79 | L18: 1.95
B19: =C36 -> Class 3 | C19: 1.37 | D19: 1.84 | E19: 3.22 | F19: 3.78 | G19: 2.73 | H19: 2.02 | I19: 2.16 | J19: 2.88 | K19: 2.59 | L19: 2.28
B23: Aggregated | C23: Class | D23: Treatment
B24: =_xlfn.CONCAT(C24,D24) -> Class 1Wood Untreated Dressed | C24: Class 1 | D24: Wood Untreated Dressed
B25: Class 1Wood Creos Impregnated | C25: Class 1 | D25: Wood Creos Impregnated
B26: Class 1Wood Other | C26: Class 1 | D26: Wood Other
B27: Class 1Wood Untreated Round | C27: Class 1 | D27: Wood Untreated Round
B28: Class 1Wood Salt Impregnated (Green) | C28: Class 1 | D28: Wood Salt Impregnated (Green)
B29: Class 1Wood Penta Impregnated | C29: Class 1 | D29: Wood Penta Impregnated
B30: Class 2Wood Untreated Dressed | C30: Class 2 | D30: Wood Untreated Dressed
B31: Class 2Wood Creos Impregnated | C31: Class 2 | D31: Wood Creos Impregnated
B32: Class 2Wood Other | C32: Class 2 | D32: Wood Other
B33: Class 2Wood Untreated Round | C33: Class 2 | D33: Wood Untreated Round
B34: Class 2Wood Salt Impregnated (Green) | C34: Class 2 | D34: Wood Salt Impregnated (Green)
B35: Class 2Wood Penta Impregnated | C35: Class 2 | D35: Wood Penta Impregnated
B36: Class 3Wood Untreated Dressed | C36: Class 3 | D36: Wood Untreated Dressed
B37: Class 3Wood Creos Impregnated | C37: Class 3 | D37: Wood Creos Impregnated
B38: Class 3Wood Other | C38: Class 3 | D38: Wood Other
B39: Class 3Wood Untreated Round | C39: Class 3 | D39: Wood Untreated Round
B40: Class 3Wood Salt Impregnated (Green) | C40: Class 3 | D40: Wood Salt Impregnated (Green)
B41: Class 3Wood Penta Impregnated | C41: Class 3 | D41: Wood Penta Impregnated
B42: UnknownWood Untreated Dressed | C42: Unknown | D42: Wood Untreated Dressed
B43: UnknownWood Creos Impregnated | C43: Unknown | D43: Wood Creos Impregnated
B44: UnknownWood Other | C44: Unknown | D44: Wood Other
B45: UnknownWood Untreated Round | C45: Unknown | D45: Wood Untreated Round
B46: UnknownWood Salt Impregnated (Green) | C46: Unknown | D46: Wood Salt Impregnated (Green)
B47: UnknownWood Penta Impregnated | C47: Unknown | D47: Wood Penta Impregnated

Sheet Lists
A1: United Energy
A2: Lists
B5: Pole condition
B6: Serviceable | C6: 1 | D6: =B6 -> Serviceable
B7: Limited Life | C7: 2 | D7: =B7 -> Limited Life
B8: Unserviceable | C8: 3 | D8: =B8 -> Unserviceable
B11: GIS Classification | C11: Voltage
B12: lv/hv/sub-transmission | C12: Sub-T
B13: lv/hv | C13: HV
B14: lv/sub-transmission | C14: Sub-T
B15: sub-transmission | C15: Sub-T
B16: lv/future hv/sub-transmission | C16: Sub-T
B17: hv/sub-transmission | C17: Sub-T
B18: lv | C18: LV
B19: lv/future hv | C19: LV
B20: lv/hv/future sub-transmission | C20: HV
B21: hv | C21: HV
B22: stay | C22: LV
B23: pl | C23: LV
B24: hv/future sub-transmission | C24: HV
B25: future hv/sub-transmission | C25: Sub-T
B26: lv/pl | C26: LV
B31: Age group | C31: Min age
B32: 0-20 | C32: 0
B33: 21-30 | C33: 21
B34: 31-40 | C34: =C33+10 -> 31
B35: 41-50 | C35: 41
B36: 51-60 | C36: 51
B37: 61-70 | C37: 61
B38: 71-80 | C38: 71
B39: 81-90 | C39: 81
B40: 90+ | C40: 91
